Workbook

Sheet READ ME

Sheet SBTM
A1: SBTM - calculate transport rate and transport grain size from
B2: specified shear velocity and bed surface grain size
A3: RULES, CONVENTIONS, AND UNITS
A4: 1. Cells for input data are highlighted in GREEN, cells for output data are ORANGE
A5: 2. Grain-diameters must be in millimeters (mm)
A6: 3. Cumulative percentiles, not fractions, are used
A7: 4. Cumulative grain-size distribution percentiles must span from 0 to 100 %
A8: 5. Shear velocity must be in meters-per-second (m/s)
A9: 6. The 0 and 100 % must be EXACTLY 0 and 100
A10: INSTRUCTIONS
A11: 1. In table below, enter grain size and cumulative % in order of decreasing grain size
A12: 2. Enter your bed shear velocity
A13: 3. Check input for errors, press Enter, and then click once on the Run SBTM button
A15: Parameter | B15: Value | C15: Description | D15: Units
A16: u* | B16: 0.2 | C16: Bed shear velocity | D16: m/s | J16: This worksheet calculates transport rates per unit width in units of m2/s
A17: qT | B17: 0.0003239488818 | C17: Total transport rate | D17: m2/s | J17: (m3 of solid sediment per m of channel width per s = m2/s)
J18: as a function of shear velocity in units of m/s. Here are some convenient unit conversions.
A19: D (mm) | B19: Surface CDF GSD (% Finer) | C19: Transport CDF GSD (% Finer) | E19: Statistic | F19: Surface GSD | G19: Transport GSD | H19: Units | J19: Handy Conversion Table | N19: Input
A20: 64 | B20: 100 | C20: 100 | E20: Dmin | F20: 2.83 | G20: 2.83 | H20: mm | J20: From | M20: To | N20: Output
A21: 45.25 | B21: 93.67088608 | C21: 98.3210665 | E21: Dmax | F21: 64 | G21: 64 | H21: mm | L21: Shear Stress | M21: Shear Velocity | N21: 1000 | O21: kg/m3 | P21: Water density r (typical = 1000)
A22: 32 | B22: 78.48101266 | C22: 89.42942393 | E22: D50 | F22: 21.67025304 | G22: 18.34344022 | H22: mm | L22: (Pa) | M22: (m/s) | N22: 2650 | O22: kg/m3 | P22: Sediment density rs (typical = quartz = 2650)
A23: 22.63 | B23: 53.16455696 | C23: 67.01108549 | E23: Dg | F23: 20.23278953 | G23: 16.62581529 | H23: mm | L23: 40 | M23: =SQRT(L23/N21) -> 0.2
A24: 16 | B24: 27.84810127 | C24: 38.9281792 | E24: sg | F24: 0.8595912664 | G24: 0.8641853702 | H24: f/y-units | K24: Depth | L24: Slope | M24: Shear Velocity
A25: 11.31 | B25: 15.18987342 | C25: 22.82042244 | E25: Fs | F25: 0 | G25: 0 | H25: % | K25: (m) | M25: (m/s)
A26: 8 | B26: 8.860759494 | C26: 13.95165089 | K26: 0.5 | L26: 0.01 | M26: =SQRT(9.81*K26*L26) -> 0.2214723459
A27: 5.66 | B27: 3.797468354 | C27: 6.287778663 | K27: Depth | L27: Slope | M27: Shear Velocity
A28: 4 | B28: 1.265822785 | C28: 2.185820365 | K28: (ft) | M28: (m/s)
A29: 2.83 | B29: 0 | C29: 0 | K29: 1.64 | L29: 0.01 | M29: =SQRT(9.81*K29*0.3048*L29) -> 0.2214439956
A30: 2 | L30: Transport Rate | M30: Unit Transport Rate
A31: 1.4 | L31: (kg/m/s) | M31: (m2/s)
A32: 1 | L32: 5 | M32: =L32/N22 -> 0.001886792453 | N32: For bed-material load in kg/m/s, 0.2 is respectable, 1.0 is a big number, 5 is getting really big
A33: 0.707 | K33: Transport Rate | L33: Channel Width | M33: Unit Transport Rate
A34: 0.5 | K34: (kg/hr) | L34: (m) | M34: (m2/s)
A35: 0.35 | K35: 10 | L35: 10 | M35: =K35/N22/3600/L35 -> 1.048218029e-07
A36: 0.25 | K36: Transport Rate | L36: Channel Width | M36: Unit Transport Rate
A37: 0.177 | K37: (tons/day) | L37: (ft) | M37: (m2/s)
K38: 10 | L38: 10 | M38: =K38*2000/2.2/N22/L38/0.3048/24/3600 -> 1.302664973e-05 | N38: where ton = 2000 lb or 909 kg of sediment
J39: Transport Rate | K39: Water Discharge | L39: Channel Width | M39: Unit Transport Rate
J40: (mg/L) | K40: (m3/s) | L40: (m) | M40: (m2/s)
J41: 1000 | K41: 5 | L41: 10 | M41: =J41*K41/L41/1000/1000/2650*1000 -> 0.0001886792453

Sheet iSBTM
A1: iSBTM - calculate bed surface grain size and bed shear velocity from
B2: specified transport rate and transport grain size
A3: RULES, CONVENTIONS, AND UNITS
A4: 1. Cells for input data are highlighted in GREEN, cells for output data are ORANGE
A5: 2. Grain-diameters must be in millimeters (mm)
A6: 3. Cumulative percentiles, not fractions, are used
A7: 4. Cumulative grain-size distribution percentiles must span from 0 to 100 %
A8: 5. Total transport rate must be in square-meters-per-second (m2/s)
A9: 6. The 0 and 100 % must be EXACTLY 0 and 100
A10: INSTRUCTIONS
A11: 1. In table below, enter grain size and cumulative % in order of decreasing grain size
A12: 2. Enter your total transport rate
A13: 3. Check input for errors, press Enter, and then click once on the Run iSBTM button
A15: Parameter | B15: Value | C15: Description | D15: Units
A16: u* | B16: 0.2 | C16: Bed shear velocity | D16: m/s | J16: This worksheet calculates shear velocity in units of m/s
A17: qT | B17: 0.0003239488818 | C17: Total transport rate | D17: m2/s | J17: as a function of transport rates per unit width in units of m2/s
J18: (m3 of solid sediment per m of channel width per s = m2/s)
A19: D (mm) | B19: Surface CDF GSD (% Finer) | C19: Transport CDF GSD (% Finer) | E19: Statistic | F19: Surface GSD | G19: Transport GSD | H19: Units | J19: Here are some convenient unit conversions.
A20: 64 | B20: 100 | C20: 100 | E20: Dmin | F20: 2.83 | G20: 2.83 | H20: mm | J20: Handy Conversion Table | N20: Input
A21: 45.25 | B21: 93.67088608 | C21: 98.3210665 | E21: Dmax | F21: 64 | G21: 64 | H21: mm | J21: From | M21: To | N21: Output
A22: 32 | B22: 78.48101266 | C22: 89.42942393 | E22: D50 | F22: 21.67025304 | G22: 18.34344022 | H22: mm | L22: Shear Stress | M22: Shear Velocity | N22: 1000
A23: 22.63 | B23: 53.16455696 | C23: 67.01108549 | E23: Dg | F23: 20.23278953 | G23: 16.62581529 | H23: mm | L23: (Pa) | M23: (m/s) | N23: 2650
A24: 16 | B24: 27.84810127 | C24: 38.9281792 | E24: sg | F24: 0.8595912664 | G24: 0.8641853702 | H24: f/y-units | L24: 49.05 | M24: =SQRT(L24/N22) -> 0.2214723459
A25: 11.31 | B25: 15.18987342 | C25: 22.82042244 | E25: Fs | F25: 0 | G25: 0 | H25: % | K25: Depth | L25: Slope | M25: Shear Velocity
A26: 8 | B26: 8.860759494 | C26: 13.95165089 | E26: Armor Ratio (D50surf / D50transport) | K26: (m) | M26: (m/s)
A27: 5.66 | B27: 3.797468354 | C27: 6.287778663 | E27: Convergence Stuff | F27: Value | G27: Units | K27: 0.5 | L27: 0.01 | M27: =SQRT(9.81*K27*L27) -> 0.2214723459
A28: 4 | B28: 1.265822785 | C28: 2.185820365 | E28: Maximum allowed iterations | F28: 200 | G28: # | K28: Depth | L28: Slope | M28: Shear Velocity
A29: 2.83 | B29: 0 | C29: 0 | E29: Number of iterations | F29: 12 | G29: # | K29: (ft) | M29: (m/s)
A30: 2 | E30: Convergence tolerance | F30: 5e-05 | G30: % | K30: 1.64 | L30: 0.01 | M30: =SQRT(9.81*K30*0.3048*L30) -> 0.2214439956
A31: 1.4 | E31: Relative difference in surface Dg at convergence | F31: 1.776356839e-14 | G31: % | L31: Transport Rate | M31: Unit Transport Rate
A32: 1 | E32: Max abs error for any fraction at convergence | F32: 1.165467722e-10 | G32: % | L32: (kg/m/s) | M32: (m2/s)
A33: 0.707 | E33: Max abs error surface sand fraction at convergence | F33: 0 | G33: % | L33: 1 | M33: =L33/N23 -> 0.0003773584906 | N33: For bed-material load in kg/m/s, 0.2 is respectable, 1.0 is a big number, 5 is getting really big
A34: 0.5 | E34: Relative difference in u* at convergence | F34: 1.776356839e-14 | G34: % | K34: Transport Rate | L34: Channel Width | M34: Unit Transport Rate
A35: 0.35 | E35: Relative difference in qT at convergence | F35: 7.151776309e-09 | G35: % | K35: (kg/hr) | L35: (m) | M35: (m2/s)
A36: 0.25 | K36: 10 | L36: 10 | M36: =K36/N23/3600/L36 -> 1.048218029e-07
A37: 0.177 | E37: Issue | F37: Warnings | K37: Transport Rate | L37: Channel Width | M37: Unit Transport Rate
E38: Singular Jacobian matrix | F38: No problems | K38: (tons/day) | L38: (ft) | M38: (m2/s)
E39: Convergence | F39: Convergence attained, have a nice day | K39: 10 | L39: 10 | M39: =K39*2000/2.2/N23/L39/0.3048/24/3600 -> 1.302664973e-05 | N39: where ton = 2000 lb or 909 kg of sediment
J40: Transport Rate | K40: Water Discharge | L40: Channel Width | M40: Unit Transport Rate
J41: (mg/L) | K41: (m3/s) | L41: (m) | M41: (m2/s)
J42: 1000 | K42: 5 | L42: 10 | M42: =J42*K42/L42/1000/1000/2650*1000 -> 0.0001886792453

Sheet STAB
A1: CHANNEL STABILITY DIAGRAM FOR GRAVEL-BED RIVERS - INPUT WORKSHEET | F1: For the input entered below, here are max and min values of
A2: RULES, CONVENTIONS, AND UNITS | G2: water discharge per unit width | J2: This worksheet uses as input water discharge in m3/s
A3: 1. Cells for input data are highlighted in GREEN | F3: Maximum q | G3: Minimum q | J3: and transport rates in units of m3/s (m3 of solid sediment per s)
A4: 2. Grain-diameters must be in millimeters (mm) | F4: =B16/B20 -> 4 | G4: =B16/B21 -> 0.5 | H4: Case 1 | J4: Here are some convenient unit conversions.
A5: 3. Cumulative percentiles, not fractions, are used | F5: =B18/B20 -> 4 | G5: =B18/B21 -> 0.5 | H5: Case 2 | J5: Handy Conversion Table | M5: Input
A6: 4. Cumulative grain-size distribution percentiles must span from 0 to 100 % | J6: From | L6: To | M6: Output
A7: 5. The 0 and 100 % must be EXACTLY 0 and 100 | F7: For the input entered below, here are max and min values of | K7: Water Discharge | L7: Water Discharge | M7: 1000 | N7: kg/m3 | O7: Water density r (typical = 1000)
A8: INSTRUCTIONS | G8: sediment transport rate per unit width | K8: (ft3/s) | L8: (m3/s) | M8: 2650 | N8: kg/m3 | O8: Sediment density rs (typical = quartz = 2650)
A9: 1. In first table below, enter water discharge and sediment supply rate in units of m3/s | F9: Maximum qs | G9: Minimum qs | K9: 1000 | L9: =K9*(0.3048)^3 -> 28.31684659
B10: and the minimum and maximum channel widths to be evaluated | F10: =2650*B17/B20 -> 2.12 | G10: =2650*B17/B21 -> 0.265 | H10: Case 1 | J10: Transport Rate | K10: Channel Width | L10: Transport Rate
A11: 2. In second table below, enter grain size and cumulative % in order of decreasing grain size | F11: =2650*B19/B20 -> 2.12 | G11: =2650*B19/B21 -> 0.265 | H11: Case 2 | J11: (kg/m/s) | K11: (m) | L11: (m3/s)
A12: 3. In cells to right, enter side slope angle z and side slope roughness ns | F12: =SQRT(1+z^2) -> 1.414213562 | G12: root | J12: 1 | K12: 10 | L12: =J12/M8*K12 -> 0.003773584906 | M12: For bed-material load in kg/m/s, 0.2 is respectable, 1.0 is a big number, 5 is getting really big
A13: 4. Check input for errors and then click once on the Run STAB button | F13: this cell intentionally left blank | K13: Transport Rate | L13: Transport Rate
A14: 5. Results appear on Worksheet "STAB OUTPUT" | K14: (kg/hr) | L14: (m3/s)
A15: Parameter | B15: Value | C15: Description | D15: Units | E15: Parameter | F15: Value | G15: Description | H15: Units | K15: 10 | L15: =K15/M8/3600 -> 1.048218029e-06
A16: Q1 | B16: 20 | C16: Case 1 water discharge | D16: m3/s | E16: z | F16: 1 | G16: side slope z:1 H:V | H16: 0 | K16: Transport Rate | L16: Transport Rate
A17: QT1 | B17: 0.004 | C17: Case 1 sediment supply rate | D17: m3/s | E17: ns | F17: 0.08 | G17: side slope roughness | H17: #&%@$ | K17: (tons/day) | L17: (m3/s)
A18: Q2 | B18: 20 | C18: Case 2 water discharge | D18: m3/s | K18: 10 | L18: =K18*2000/2.2/M8/24/3600 -> 3.970522838e-05 | M18: where ton = 2000 lb or 909 kg of sediment
A19: QT2 | B19: 0.004 | C19: Case 2 sediment supply rate | D19: m3/s | J19: Transport Rate | K19: Water Discharge | L19: Transport Rate
A20: bmin | B20: 5 | C20: Minimum bottom width | D20: m | J20: (mg/L) | K20: (m3/s) | L20: (m3/s)
A21: bmax | B21: 40 | C21: Maximum bottom width | D21: m | J21: 1000 | K21: 5 | L21: =J21*K21/1000/1000/2650*1000 -> 0.001886792453
A23: D (mm) | B23: Case 1 Transport Grain Size (% Finer) | C23: Case 2 Transport Grain Size (% Finer)
A24: 64 | B24: 100 | C24: 100
A25: 45.25 | B25: 93.67088608 | C25: 95.78059072
A26: 32 | B26: 78.48101266 | C26: 85.65400844
A27: 22.63 | B27: 53.16455696 | C27: 68.77637131 | E27: Statistic | F27: FIRST Transport GSD | G27: SECOND Transport GSD | H27: Units
A28: 16 | B28: 27.84810127 | C28: 51.89873418 | E28: Dmin | F28: 0.177 | G28: 0.177 | H28: mm
A29: 11.31 | B29: 15.18987342 | C29: 43.45991561 | E29: Dmax | F29: 64 | G29: 64 | H29: mm
A30: 8 | B30: 8.860759494 | C30: 39.24050633 | E30: D50 | F30: 21.67025304 | G30: 14.79864911 | H30: mm
A31: 5.66 | B31: 3.797468354 | C31: 35.8649789 | E31: Dg | F31: 20.23278953 | G31: 7.469418612 | H31: mm
A32: 4 | B32: 1.265822785 | C32: 34.17721519 | E32: sg | F32: 0.8595912664 | G32: 1.370013129 | H32: f/y-units
A33: 2.83 | B33: 0 | C33: 32.84313725 | E33: Fs | F33: 0 | G33: 0 | H33: %
A34: 2 | C34: 31.8627451
A35: 1.4 | C35: 29.90196078
A36: 1 | C36: 26.47058824
A37: 0.707 | C37: 19.60784314
A38: 0.5 | C38: 11.76470588
A39: 0.35 | C39: 5.882352941
A40: 0.25 | C40: 1.960784314
A41: 0.177 | C41: 0

Sheet STAB OUTPUT
A1: Channel Stability chart developed using inverse calculation of the Wilcock & Crowe (2003) transport relation. | L1: z | M1: =z -> 1 | N1: side slope z:1 H:V | P1: ns | Q1: =ns -> 0.08 | R1: side slope roughness
A2: 1. CHANNEL STABILITY DIAGRAM | L2: 2. THRESHOLD CHECK - SLOPE AS FN(SEDIMENT SUPPLY RATE) AT MEAN WIDTH
O21: ='STAB plot DATA'!A28 -> 22.5 | P21: =Qone/('STAB plot DATA'!A28*'STAB plot DATA'!F28) -> 2.180617312 | Q21: =QTone/'STAB plot DATA'!A28*2650 -> 0.4711111111
L22: 3. GRAIN-SIZE DISTRIBUTIONS | O22: ='STAB plot DATA'!A28 -> 22.5 | P22: =Qtwo/('STAB plot DATA'!A28*'STAB plot DATA'!N28) -> 1.754058586 | Q22: =QTtwo/'STAB plot DATA'!A28*2650 -> 0.4711111111

Sheet STAB plot DATA
A1: OUTPUT | B1: Case 1 | J1: Case 2 | U1: Output for different feed rates to mean width | V1: Case 1 | AD1: Case 2
A2: b (m) | B2: nD1 | C2: tb1 (Pa) | D2: G1 | E2: Ds150 | F2: h1 (m) | G2: nc1 | H2: Rt1 (m) | I2: S1 | J2: nD2 | K2: tb2 (Pa) | L2: G2 | M2: Ds250 | N2: h2 (m) | O2: nc2 | P2: Rt2 (m) | Q2: S2 | S2: QT (kg/hr) | T2: qT (m^2/s) | U2: b (m) | V2: nD1 | W2: tb1 (Pa) | X2: G1 | Y2: Ds184 | Z2: h1 (m) | AA2: nc1 | AB2: Rt1 (m) | AC2: S1 | AD2: nD2 | AE2: tb2 (Pa) | AF2: G2 | AG2: Ds284 | AH2: h2 (m) | AI2: nc2 | AJ2: Rt2 (m) | AK2: S2 | AO2: F1 | AP2: F2
A3: 5 | B3: 0.02499001365 | C3: 56.83308872 | D3: 1.173629068 | E3: 25.229512 | F3: =IF(ISERROR(F3),B3*Qone/(SQRT(I3)*$A3),(G3*Qone/SQRT(I3)*($A3+2*F3*root)^(2/3))^0.6/($A3+z*F3)) -> 1.158516406 | G3: =($A3+2*F3*root)*(($A3+z*F3)*F3/($A3+2*F3*root))^(5/3)/(($A3*F3)^(5/3)/(B3*($A3+2*F3)^(2/3))+2*F3*(1+root)/ns*(z*F3/(2*(1+root)))^(5/3)) -> 0.03154782946 | H3: =F3*($A3+z*F3)/($A3+2*F3*root) -> 0.8620191617 | I3: =IF(ISERROR(I3),0.001,(G3/B3)^1.5*C3/(9810*H3)) -> 0.009532785457 | J3: 0.02464303306 | K3: 34.87173668 | L3: 1.716928242 | M3: 23.19929825 | N3: =IF(ISERROR(N3),J3*Qtwo/(SQRT(Q3)*$A3),(O3*Qtwo/SQRT(Q3)*($A3+2*N3*root)^(2/3))^0.6/($A3+z*N3)) -> 1.388303873 | O3: =($A3+2*N3*root)*(($A3+z*N3)*N3/($A3+2*N3*root))^(5/3)/(($A3*N3)^(5/3)/(J3*($A3+2*N3)^(2/3))+2*N3*(1+root)/ns*(z*N3/(2*(1+root)))^(5/3)) -> 0.0325091784 | P3: =N3*($A3+z*N3)/($A3+2*N3*root) -> 0.9935240103 | Q3: =IF(ISERROR(Q3),0.001,(O3/J3)^1.5*K3/(9810*P3)) -> 0.005421181573 | S3: =T3*U3*2650*3600 -> 2.1465 | T3: 1e-08 | U3: 22.5 | V3: 0.02635447076 | W3: 12.50626352 | X3: 1.58242343 | Y3: 32.01684021 | Z3: =IF(ISERROR(Z3),V3*Qone/(SQRT(AC3)*$U3),(AA3*Qone/SQRT(AC3)*($U3+2*Z3*root)^(2/3))^0.6/($U3+z*Z3)) -> 0.6887265302 | AA3: =($U3+2*Z3*root)*(($U3+z*Z3)*Z3/($U3+2*Z3*root))^(5/3)/(($U3*Z3)^(5/3)/(V3*($U3+2*Z3)^(2/3))+2*Z3*(1+root)/ns*(z*Z3/(2*(1+root)))^(5/3)) -> 0.02717998417 | AB3: =Z3*($U3+z*Z3)/($U3+2*Z3*root) -> 0.6532510963 | AC3: =IF(ISERROR(AC3),0.001,(AA3/V3)^1.5*W3/(9810*AB3)) -> 0.002043952369 | AD3: 0.0264147355 | AE3: 10.72000307 | AF3: 4.125181051 | AG3: 30.81270412 | AH3: =IF(ISERROR(AH3),AD3*Qtwo/(SQRT(AK3)*$U3),(AI3*Qtwo/SQRT(AK3)*($U3+2*AH3*root)^(2/3))^0.6/($U3+z*AH3)) -> 0.7365963146 | AI3: =($U3+2*AH3*root)*(($U3+z*AH3)*AH3/($U3+2*AH3*root))^(5/3)/(($U3*AH3)^(5/3)/(AD3*($U3+2*AH3)^(2/3))+2*AH3*(1+root)/ns*(z*AH3/(2*(1+root)))^(5/3)) -> 0.02730074765 | AJ3: =AH3*($U3+z*AH3)/($U3+2*AH3*root) -> 0.6962415673 | AK3: =IF(ISERROR(AK3),0.001,(AI3/AD3)^1.5*AE3/(9810*AJ3)) -> 0.00164914319 | AO3: =Qone/(A3*SQRT(9.81)*F3^1.5) -> 1.024170366 | AP3: =Qtwo/(A3*SQRT(9.81)*N3^1.5) -> 0.7807260758
A4: 5.7 | B4: 0.02501175301 | C4: 54.80824447 | D4: 1.180046372 | E4: 25.36148496 | F4: =IF(ISERROR(F4),B4*Qone/(SQRT(I4)*$A4),(G4*Qone/SQRT(I4)*($A4+2*F4*root)^(2/3))^0.6/($A4+z*F4)) -> 1.069493649 | G4: =($A4+2*F4*root)*(($A4+z*F4)*F4/($A4+2*F4*root))^(5/3)/(($A4*F4)^(5/3)/(B4*($A4+2*F4)^(2/3))+2*F4*(1+root)/ns*(z*F4/(2*(1+root)))^(5/3)) -> 0.03024954044 | H4: =F4*($A4+z*F4)/($A4+2*F4*root) -> 0.8297928984 | I4: =IF(ISERROR(I4),0.001,(G4/B4)^1.5*C4/(9810*H4)) -> 0.008955073304 | J4: 0.02468554802 | K4: 33.470413 | L4: 1.751042084 | M4: 23.44048152 | N4: 1.28836024 | O4: =($A4+2*N4*root)*(($A4+z*N4)*N4/($A4+2*N4*root))^(5/3)/(($A4*N4)^(5/3)/(J4*($A4+2*N4)^(2/3))+2*N4*(1+root)/ns*(z*N4/(2*(1+root)))^(5/3)) -> 0.03100547369 | P4: 0.9635588215 | Q4: 0.004984335054 | S4: 3.847863982 | T4: 1.7926224e-08 | U4: 22.5 | V4: 0.02635447076 | W4: 13.34421405 | X4: 1.58242343 | Y4: 32.01684021 | Z4: 0.6700593155 | AA4: 0.02715712928 | AB4: 0.6364081955 | AC4: =IF(ISERROR(AC4),0.001,(AA4/V4)^1.5*W4/(9810*AB4)) -> 0.00223579803 | AD4: 0.0264147355 | AE4: 11.43826974 | AF4: 4.125181051 | AG4: 30.81270412 | AH4: 0.7166471896 | AI4: 0.02727620755 | AJ4: 0.6783608095 | AK4: 0.001803587251 | AO4: 1.012869098 | AP4: 0.7660633161
A5: 6.4 | B5: 0.02503153436 | C5: 53.11912114 | D5: 1.185892694 | E5: 25.48207086 | F5: =IF(ISERROR(F5),B5*Qone/(SQRT(I5)*$A5),(G5*Qone/SQRT(I5)*($A5+2*F5*root)^(2/3))^0.6/($A5+z*F5)) -> 0.9939279966 | G5: =($A5+2*F5*root)*(($A5+z*F5)*F5/($A5+2*F5*root))^(5/3)/(($A5*F5)^(5/3)/(B5*($A5+2*F5)^(2/3))+2*F5*(1+root)/ns*(z*F5/(2*(1+root)))^(5/3)) -> 0.0293163256 | H5: =F5*($A5+z*F5)/($A5+2*F5*root) -> 0.7978319688 | I5: 0.008602081183 | J5: 0.02472374411 | K5: 32.31218696 | L5: 1.782120233 | M5: 23.65894263 | N5: 1.202491231 | O5: 0.02991738653 | P5: 0.9327396091 | Q5: 0.00470057563 | S5: 6.897767166 | T5: 3.213495069e-08 | U5: 22.5 | V5: 0.02635447076 | W5: 14.23830934 | X5: 1.58242343 | Y5: 32.01684021 | Z5: 0.6518925456 | AA5: 0.02713491106 | AB5: 0.6199741709 | AC5: 0.002445833983 | AD5: 0.02641475169 | AE5: 12.20444453 | AF5: 4.125148336 | AG5: 30.81245976 | AH5: 0.6972376824 | AI5: 0.02725237489 | AJ5: 0.6609157984 | AK5: 0.001972602641 | AO5: 1.006892561 | AP5: 0.7566458261
A6: 7.1 | B6: 0.02504972199 | C6: 51.68127458 | D6: 1.191272767 | E6: 25.59336278 | F6: =IF(ISERROR(F6),B6*Qone/(SQRT(I6)*$A6),(G6*Qone/SQRT(I6)*($A6+2*F6*root)^(2/3))^0.6/($A6+z*F6)) -> 0.9290480675 | G6: =($A6+2*F6*root)*(($A6+z*F6)*F6/($A6+2*F6*root))^(5/3)/(($A6*F6)^(5/3)/(B6*($A6+2*F6)^(2/3))+2*F6*(1+root)/ns*(z*F6/(2*(1+root)))^(5/3)) -> 0.02862433388 | H6: =F6*($A6+z*F6)/($A6+2*F6*root) -> 0.7668140745 | I6: 0.008392142521 | J6: 0.02475846049 | K6: 31.33457504 | L6: 1.810711584 | M6: 23.85897094 | N6: 1.128026197 | O6: 0.02910689722 | P6: 0.9019380128 | Q6: 0.004514259545 | S6: 12.36509193 | T6: 5.760583243e-08 | U6: 22.5 | V6: 0.02635447076 | W6: 15.19231122 | X6: 1.58242343 | Y6: 32.01684021 | Z6: 0.6342130948 | AA6: 0.02711331167 | AB6: 0.6039403251 | AC6: 0.002675797312 | AD6: 0.02641501139 | AE6: 13.01823452 | AF6: 4.124612377 | AG6: 30.80845645 | AH6: 0.6784350092 | AI6: 0.02722956352 | AJ6: 0.643970826 | AK6: 0.002156759437 | AO6: 1.004337935 | AP6: 0.7506860829
A7: 7.8 | B7: 0.02506658418 | C7: 50.43738087 | D7: 1.196263975 | E7: 25.69690571 | F7: =IF(ISERROR(F7),B7*Qone/(SQRT(I7)*$A7),(G7*Qone/SQRT(I7)*($A7+2*F7*root)^(2/3))^0.6/($A7+z*F7)) -> 0.8727622634 | G7: =($A7+2*F7*root)*(($A7+z*F7)*F7/($A7+2*F7*root))^(5/3)/(($A7*F7)^(5/3)/(B7*($A7+2*F7)^(2/3))+2*F7*(1+root)/ns*(z*F7/(2*(1+root)))^(5/3)) -> 0.02809774935 | H7: =F7*($A7+z*F7)/($A7+2*F7*root) -> 0.7371307251 | I7: 0.00827758351 | J7: 0.02479030902 | K7: 30.49544485 | L7: 1.83722345 | M7: 24.04371289 | N7: 1.062884643 | O7: 0.02848835698 | P7: 0.8717351144 | Q7: =IF(ISERROR(Q7),0.001,(O7/J7)^1.5*K7/(9810*P7)) -> 0.004392983973 | S7: 22.16594077 | T7: 1.032655056e-07 | U7: 22.5 | V7: 0.02635447076 | W7: 16.21023358 | X7: 1.58242343 | Y7: 32.01684021 | Z7: 0.6170081666 | AA7: 0.02709231374 | AB7: 0.5882980882 | AC7: 0.002927591812 | AD7: 0.02641625437 | AE7: 13.86854675 | AF7: 4.121957087 | AG7: 30.78862298 | AH7: 0.6605124031 | AI7: 0.02720886472 | AJ7: 0.6277771307 | AK7: 0.002354047554 | AO7: 1.00405372 | AP7: 0.7470878802
A8: 8.5 | B8: 0.02508232465 | C8: 49.34696098 | D8: 1.200925256 | E8: 25.79387547 | F8: =IF(ISERROR(F8),B8*Qone/(SQRT(I8)*$A8),(G8*Qone/SQRT(I8)*($A8+2*F8*root)^(2/3))^0.6/($A8+z*F8)) -> 0.8234748138 | G8: =($A8+2*F8*root)*(($A8+z*F8)*F8/($A8+2*F8*root))^(5/3)/(($A8*F8)^(5/3)/(B8*($A8+2*F8)^(2/3))+2*F8*(1+root)/ns*(z*F8/(2*(1+root)))^(5/3)) -> 0.02768820315 | H8: =F8*($A8+z*F8)/($A8+2*F8*root) -> 0.7089803761 | I8: 0.008229011554 | J8: 0.02481974997 | K8: 29.76522573 | L8: 1.861967025 | M8: 24.21554808 | N8: 1.005439044 | O8: 0.0280065208 | P8: 0.8424981241 | Q8: 0.004316819285 | S8: 39.73516195 | T8: 1.851160585e-07 | U8: 22.5 | V8: 0.02635447076 | W8: 17.29635925 | X8: 1.58242343 | Y8: 32.01684021 | Z8: 0.6002652858 | AA8: 0.02707190042 | AB8: 0.5730390181 | AC8: 0.003203304048 | AD8: 0.02641983305 | AE8: 14.7241918 | AF8: 4.114022774 | AG8: 30.72935828 | AH8: 0.6440351042 | AI8: 0.02719235248 | AJ8: 0.6128530674 | AK8: 0.002557296962 | AO8: 1.005312506 | AP8: 0.7451486988
A9: 9.2 | B9: 0.02509710203 | C9: 48.38049846 | D9: 1.205302625 | E9: 25.88518944 | F9: =IF(ISERROR(F9),B9*Qone/(SQRT(I9)*$A9),(G9*Qone/SQRT(I9)*($A9+2*F9*root)^(2/3))^0.6/($A9+z*F9)) -> 0.7799533203 | G9: =($A9+2*F9*root)*(($A9+z*F9)*F9/($A9+2*F9*root))^(5/3)/(($A9*F9)^(5/3)/(B9*($A9+2*F9)^(2/3))+2*F9*(1+root)/ns*(z*F9/(2*(1+root)))^(5/3)) -> 0.02736372568 | H9: =F9*($A9+z*F9)/($A9+2*F9*root) -> 0.6824364074 | I9: 0.00822747594 | J9: 0.0248471391 | K9: 29.12247575 | L9: 1.885186191 | M9: 24.37632539 | N9: 0.9544067121 | O9: 0.02762454843 | P9: 0.814442497 | Q9: 0.004272942537 | S9: 71.23014138 | T9: 3.31843193e-07 | U9: 22.5 | V9: 0.02635447076 | W9: 18.45525802 | X9: 1.58242343 | Y9: 32.01684021 | Z9: 0.5839722918 | AA9: 0.02705205531 | AB9: 0.5581548018 | AC9: 0.003505220959 | AD9: 0.02642699202 | AE9: 15.54696808 | AF9: 4.097813507 | AG9: 30.60828448 | AH9: 0.6295016617 | AI9: 0.02718190359 | AJ9: 0.5996606324 | AK9: 0.002756889519 | AO9: 1.007638488 | AP9: 0.7444018387
A10: 9.9 | B10: 0.02511104245 | C10: 47.51588937 | D10: 1.209432758 | E10: 25.97157838 | F10: =IF(ISERROR(F10),B10*Qone/(SQRT(I10)*$A10),(G10*Qone/SQRT(I10)*($A10+2*F10*root)^(2/3))^0.6/($A10+z*F10)) -> 0.7412341755 | G10: =($A10+2*F10*root)*(($A10+z*F10)*F10/($A10+2*F10*root))^(5/3)/(($A10*F10)^(5/3)/(B10*($A10+2*F10)^(2/3))+2*F10*(1+root)/ns*(z*F10/(2*(1+root)))^(5/3)) -> 0.02710253074 | H10: =F10*($A10+z*F10)/($A10+2*F10*root) -> 0.6574941682 | I10: 0.008260295909 | J10: 0.02487275726 | K10: 28.55122064 | L10: 1.907075856 | M10: 24.52751099 | N10: 0.9087677334 | O10: 0.02731715214 | P10: 0.7876790241 | Q10: 0.004252786959 | S10: 127.688747 | T10: 5.94869541e-07 | U10: 22.5 | V10: 0.02635451306 | W10: 19.69123095 | X10: 1.582330627 | Y10: 32.01496254 | Z10: 0.5681251454 | AA10: 0.02703281525 | AB10: 0.5436444189 | AC10: 0.003835688622 | AD10: 0.02643895134 | AE10: 16.30416108 | AF10: 4.07049715 | AG10: 30.40424718 | AH10: 0.6171699156 | AI10: 0.02717907281 | AJ10: 0.5884453245 | AK10: 0.002943804405 | AO10: 1.010711356 | AP10: 0.7445278529
A11: 10.6 | B11: 0.02512424799 | C11: 46.73620447 | D11: 1.213345398 | E11: 26.05363466 | F11: =IF(ISERROR(F11),B11*Qone/(SQRT(I11)*$A11),(G11*Qone/SQRT(I11)*($A11+2*F11*root)^(2/3))^0.6/($A11+z*F11)) -> 0.7065548444 | G11: =($A11+2*F11*root)*(($A11+z*F11)*F11/($A11+2*F11*root))^(5/3)/(($A11*F11)^(5/3)/(B11*($A11+2*F11)^(2/3))+2*F11*(1+root)/ns*(z*F11/(2*(1+root)))^(5/3)) -> 0.02688937132 | H11: =F11*($A11+z*F11)/($A11+2*F11*root) -> 0.6341024607 | I11: 0.00831871718 | J11: 0.02489683021 | K11: 28.03928463 | L11: 1.927794502 | M11: 24.67028891 | N11: 0.867703544 | O11: 0.02706652968 | P11: 0.762248118 | Q11: 0.004250444401 | S11: 228.8977081 | T11: 1.066376464e-06 | U11: 22.5 | V11: 0.02635474993 | W11: 21.00440614 | X11: 1.58137089 | Y11: 31.99554438 | Z11: 0.5527697753 | AA11: 0.0270143901 | AB11: 0.529552674 | AC11: 0.004196011168 | AD11: 0.02645755775 | AE11: 16.95800889 | AF11: 4.0269344 | AG11: 30.07885876 | AH11: 0.6073239829 | AI11: 0.02718608926 | AJ11: 0.5794766031 | AK11: 0.003107172926 | AO11: 1.014310238 | AP11: 0.745302486
A12: 11.3 | B12: 0.02513680248 | C12: 46.02822607 | D12: 1.21706503 | E12: 26.13184571 | F12: =IF(ISERROR(F12),B12*Qone/(SQRT(I12)*$A12),(G12*Qone/SQRT(I12)*($A12+2*F12*root)^(2/3))^0.6/($A12+z*F12)) -> 0.6753049996 | G12: =($A12+2*F12*root)*(($A12+z*F12)*F12/($A12+2*F12*root))^(5/3)/(($A12*F12)^(5/3)/(B12*($A12+2*F12)^(2/3))+2*F12*(1+root)/ns*(z*F12/(2*(1+root)))^(5/3)) -> 0.02671332471 | H12: =F12*($A12+z*F12)/($A12+2*F12*root) -> 0.6121841128 | I12: 0.008396533819 | J12: 0.02491954236 | K12: 27.57720418 | L12: 1.947472899 | M12: 24.80563018 | N12: 0.8305510549 | O12: 0.02685986632 | P12: 0.7381441088 | Q12: 0.004261728177 | S12: 410.3271588 | T12: 1.911610337e-06 | U12: 22.5 | V12: 0.02635413752 | W12: 22.3855355 | X12: 1.577360898 | Y12: 31.91441107 | Z12: 0.5380111131 | AA12: 0.02699583911 | AB12: 0.5159790101 | AC12: 0.004584990924 | AD12: 0.02648397798 | AE12: 17.45503837 | AF12: 3.955990464 | AG12: 29.5489488 | AH12: 0.600434388 | AI12: 0.02720471565 | AJ12: 0.5731933166 | AK12: 0.003231782626 | AO12: 1.018279735 | AP12: 0.7465648651
A13: 12 | B13: 0.02514877571 | C13: 45.38146129 | D13: 1.220612074 | E13: 26.20661786 | F13: =IF(ISERROR(F13),B13*Qone/(SQRT(I13)*$A13),(G13*Qone/SQRT(I13)*($A13+2*F13*root)^(2/3))^0.6/($A13+z*F13)) -> 0.6469908999 | G13: =($A13+2*F13*root)*(($A13+z*F13)*F13/($A13+2*F13*root))^(5/3)/(($A13*F13)^(5/3)/(B13*($A13+2*F13)^(2/3))+2*F13*(1+root)/ns*(z*F13/(2*(1+root)))^(5/3)) -> 0.02656640299 | H13: =F13*($A13+z*F13)/($A13+2*F13*root) -> 0.5916491524 | I13: 0.008489245342 | J13: 0.02494104636 | K13: 27.15749843 | L13: 1.966220322 | M13: 24.93434179 | N13: 0.7967682684 | O13: 0.02668775366 | P13: 0.71533214 | Q13: 0.004283601314 | S13: 735.5616562 | T13: 3.42679551e-06 | U13: 22.5 | V13: 0.02634303637 | W13: 23.81299937 | X13: 1.565774458 | Y13: 31.67998506 | Z13: 0.5238812323 | AA13: 0.02696736005 | AB13: 0.5029563856 | AC13: 0.004998891032 | AD13: 0.02650462299 | AE13: 17.75013881 | AF13: 3.837345641 | AG13: 28.66274095 | AH13: 0.5965727596 | AI13: 0.02722112598 | AJ13: 0.5696688138 | AK13: 0.003305879222 | AO13: 1.022508643 | AP13: 0.7481974113
A14: 12.7 | B14: 0.02516022644 | C14: 44.78745835 | D14: 1.224003748 | E14: 26.27829371 | F14: =IF(ISERROR(F14),B14*Qone/(SQRT(I14)*$A14),(G14*Qone/SQRT(I14)*($A14+2*F14*root)^(2/3))^0.6/($A14+z*F14)) -> 0.6212091324 | G14: =($A14+2*F14*root)*(($A14+z*F14)*F14/($A14+2*F14*root))^(5/3)/(($A14*F14)^(5/3)/(B14*($A14+2*F14)^(2/3))+2*F14*(1+root)/ns*(z*F14/(2*(1+root)))^(5/3)) -> 0.02644265641 | H14: =F14*($A14+z*F14)/($A14+2*F14*root) -> 0.5724030675 | I14: 0.008593523368 | J14: 0.02496147008 | K14: 26.77416581 | L14: 1.98412911 | M14: 25.05710227 | N14: 0.7659083479 | O14: 0.02654316159 | P14: 0.6937597488 | Q14: 0.004313815634 | S14: 1318.584301 | T14: 6.142950391e-06 | U14: 22.5 | V14: 0.02628789103 | W14: 25.27297064 | X14: 1.541088162 | Y14: 31.18051243 | Z14: 0.509895314 | AA14: 0.02689414386 | AB14: 0.4900400525 | AC14: 0.005440122438 | AD14: 0.02646353445 | AE14: 17.87747508 | AF14: 3.654317098 | AG14: 27.29562415 | AH14: 0.5939842569 | AI14: 0.02717589551 | AJ14: 0.5673051991 | AK14: 0.003342908076 | AO14: 1.026916244 | AP14: 0.7501127828
A15: 13.4 | B15: 0.02517120462 | C15: 44.23932181 | D15: 1.227254722 | E15: 26.34716502 | F15: =IF(ISERROR(F15),B15*Qone/(SQRT(I15)*$A15),(G15*Qone/SQRT(I15)*($A15+2*F15*root)^(2/3))^0.6/($A15+z*F15)) -> 0.5976270357 | G15: =($A15+2*F15*root)*(($A15+z*F15)*F15/($A15+2*F15*root))^(5/3)/(($A15*F15)^(5/3)/(B15*($A15+2*F15)^(2/3))+2*F15*(1+root)/ns*(z*F15/(2*(1+root)))^(5/3)) -> 0.02633758015 | H15: =F15*($A15+z*F15)/($A15+2*F15*root) -> 0.5543518467 | I15: 0.008706863976 | J15: 0.02498092176 | K15: 26.42232847 | L15: 2.001278051 | M15: 25.17448796 | N15: 0.7375999112 | O15: 0.02642075357 | P15: 0.6733646982 | Q15: 0.004350677054 | S15: 2363.723755 | T15: 1.101199047e-05 | U15: 22.5 | V15: 0.02615556054 | W15: 26.79466815 | X15: 1.501713443 | Y15: 30.38385203 | Z15: 0.4952552228 | AA15: 0.0267415055 | AB15: 0.4764913073 | AC15: 0.005925938306 | AD15: 0.02633292292 | AE15: 17.97297978 | AF15: 3.414306388 | AG15: 25.50288368 | AH15: 0.5901617102 | AI15: 0.02703753643 | AJ15: 0.5638131487 | AK15: 0.003380788116 | AO15: 1.031443254 | AP15: 0.7522451736
A16: 14.1 | B16: 0.02518175315 | C16: 43.73136161 | D16: 1.230377603 | E16: 26.41348247 | F16: =IF(ISERROR(F16),B16*Qone/(SQRT(I16)*$A16),(G16*Qone/SQRT(I16)*($A16+2*F16*root)^(2/3))^0.6/($A16+z*F16)) -> 0.5759679382 | G16: =($A16+2*F16*root)*(($A16+z*F16)*F16/($A16+2*F16*root))^(5/3)/(($A16*F16)^(5/3)/(B16*($A16+2*F16)^(2/3))+2*F16*(1+root)/ns*(z*F16/(2*(1+root)))^(5/3)) -> 0.02624771288 | H16: =F16*($A16+z*F16)/($A16+2*F16*root) -> 0.5374049341 | I16: 0.008827355141 | J16: 0.02499949387 | K16: 26.09797573 | L16: 2.017734962 | M16: 25.28699293 | N16: 0.7115319272 | O16: 0.02631642073 | P16: 0.6540802023 | Q16: 0.004392888892 | S16: 4237.264151 | T16: 1.974034079e-05 | U16: 22.5 | V16: 0.02596399821 | W16: 28.47538717 | X16: 1.45060471 | Y16: 29.34977978 | Z16: 0.4796076741 | AA16: 0.02652746442 | AB16: 0.4619780712 | AC16: 0.006488816973 | AD16: 0.02611875978 | AE16: 18.19740008 | AF16: 3.13449621 | AG16: 23.41286433 | AH16: 0.5830105758 | AI16: 0.02680968366 | AJ16: 0.5572751525 | AK16: 0.003461619785 | AO16: 1.036045709 | AP16: 0.7545443841
A17: 14.8 | B17: 0.02519190909 | C17: 43.25883438 | D17: 1.233383312 | E17: 26.47746319 | F17: =IF(ISERROR(F17),B17*Qone/(SQRT(I17)*$A17),(G17*Qone/SQRT(I17)*($A17+2*F17*root)^(2/3))^0.6/($A17+z*F17)) -> 0.5559999075 | G17: =($A17+2*F17*root)*(($A17+z*F17)*F17/($A17+2*F17*root))^(5/3)/(($A17*F17)^(5/3)/(B17*($A17+2*F17)^(2/3))+2*F17*(1+root)/ns*(z*F17/(2*(1+root)))^(5/3)) -> 0.02617035948 | H17: =F17*($A17+z*F17)/($A17+2*F17*root) -> 0.5214768459 | I17: 0.008953517512 | J17: 0.0250172659 | K17: 25.79777568 | L17: 2.033558582 | M17: 25.39504329 | N17: 0.6874420383 | O17: 0.02622695835 | P17: 0.6358383475 | Q17: 0.004439444809 | S17: 7595.814631 | T17: 3.538697709e-05 | U17: 22.5 | V17: 0.02574655971 | W17: 30.44022372 | X17: 1.392639848 | Y17: 28.17698895 | Z17: 0.4628723702 | AA17: 0.02628603268 | AB17: 0.4464189816 | AC17: 0.007170425635 | AD17: 0.02585234257 | AE17: 18.74730939 | AF17: 2.845926632 | AG17: 21.25741736 | AH17: 0.5707053769 | AI17: 0.02652232191 | AJ17: 0.5460092555 | AK17: 0.003636950534 | AO17: 1.040690757 | AP17: 0.7569717061
A18: 15.5 | B18: 0.02520170477 | C18: 42.81774958 | D18: 1.236281377 | E18: 26.5392966 | F18: =IF(ISERROR(F18),B18*Qone/(SQRT(I18)*$A18),(G18*Qone/SQRT(I18)*($A18+2*F18*root)^(2/3))^0.6/($A18+z*F18)) -> 0.5375270846 | G18: =($A18+2*F18*root)*(($A18+z*F18)*F18/($A18+2*F18*root))^(5/3)/(($A18*F18)^(5/3)/(B18*($A18+2*F18)^(2/3))+2*F18*(1+root)/ns*(z*F18/(2*(1+root)))^(5/3)) -> 0.02610339606 | H18: =F18*($A18+z*F18)/($A18+2*F18*root) -> 0.506487942 | I18: 0.009084193155 | J18: 0.02503430723 | K18: 25.51893445 | L18: 2.048800451 | M18: 25.4990122 | N18: 0.6651074696 | O18: 0.02614983811 | P18: 0.6185722948 | Q18: 0.004489554055 | S18: 13616.42745 | T18: 6.343548779e-05 | U18: 22.5 | V18: 0.0255576125 | W18: 33.00447313 | X18: 1.33989643 | Y18: 27.10984245 | Z18: 0.4444295304 | AA18: 0.02607190283 | AB18: 0.4292278637 | AC18: 0.008075967484 | AD18: 0.02559342349 | AE18: 19.8609399 | AF18: 2.582373901 | AG18: 19.28883168 | AH18: 0.5521582723 | AI18: 0.02623549458 | AJ18: 0.5289908454 | AK18: 0.003972134474 | AO18: 1.045353712 | AP18: 0.7594969881
A19: 16.2 | B19: 0.02521116852 | C19: 42.40472218 | D19: 1.239080165 | E19: 26.599149 | F19: =IF(ISERROR(F19),B19*Qone/(SQRT(I19)*$A19),(G19*Qone/SQRT(I19)*($A19+2*F19*root)^(2/3))^0.6/($A19+z*F19)) -> 0.5203829441 | G19: =($A19+2*F19*root)*(($A19+z*F19)*F19/($A19+2*F19*root))^(5/3)/(($A19*F19)^(5/3)/(B19*($A19+2*F19)^(2/3))+2*F19*(1+root)/ns*(z*F19/(2*(1+root)))^(5/3)) -> 0.02604513046 | H19: =F19*($A19+z*F19)/($A19+2*F19*root) -> 0.4923646704 | I19: 0.009218466357 | J19: 0.02505067814 | K19: 25.25908953 | L19: 2.063505676 | M19: 25.5992247 | N19: 0.6443378562 | O19: 0.02608304336 | P19: 0.6022176182 | Q19: 0.004542588451 | S19: 24409.11286 | T19: 0.0001137158764 | U19: 22.5 | V19: 0.02539465766 | W19: 36.35068219 | X19: 1.292982063 | Y19: 26.16063395 | Z19: 0.424226114 | AA19: 0.02588245757 | AB19: 0.4103417474 | AC19: 0.009291644319 | AD19: 0.02535096181 | AE19: 21.63131335 | AF19: 2.343594414 | AG19: 17.50528774 | AH19: 0.5282089756 | AI19: 0.02595954404 | AJ19: 0.5069478358 | AK19: 0.0045071762 | AO19: 1.050015951 | AP19: 0.7620965678
A20: 16.9 | B20: 0.02522032533 | C20: 42.01685908 | D20: 1.241787065 | E20: 26.65716728 | F20: =IF(ISERROR(F20),B20*Qone/(SQRT(I20)*$A20),(G20*Qone/SQRT(I20)*($A20+2*F20*root)^(2/3))^0.6/($A20+z*F20)) -> 0.5044250034 | G20: =($A20+2*F20*root)*(($A20+z*F20)*F20/($A20+2*F20*root))^(5/3)/(($A20*F20)^(5/3)/(B20*($A20+2*F20)^(2/3))+2*F20*(1+root)/ns*(z*F20/(2*(1+root)))^(5/3)) -> 0.02599420095 | H20: =F20*($A20+z*F20)/($A20+2*F20*root) -> 0.479039493 | I20: 0.009355606328 | J20: 0.02506643171 | K20: 25.01622783 | L20: 2.077714199 | M20: 25.69596792 | N20: 0.6249695823 | O20: 0.02602495018 | P20: 0.5867130989 | Q20: 0.004598043963 | S20: 43756.32248 | T20: 0.0002038496272 | U20: 22.5 | V20: 0.02525340143 | W20: 40.70544679 | X20: 1.251554136 | Y20: 25.32243141 | Z20: 0.4023672564 | AA20: 0.0257134374 | AB20: 0.3898441817 | AC20: 0.01093585754 | AD20: 0.02512263763 | AE20: 24.20393625 | AF20: 2.128863296 | AG20: 15.90137112 | AH20: 0.4997278011 | AI20: 0.02569325855 | AJ20: 0.4806335533 | AK20: 0.005309258083 | AO20: 1.05466341 | AP20: 0.7647517274
A21: 17.6 | B21: 0.02522919739 | C21: 41.65167062 | D21: 1.244408641 | E21: 26.71348187 | F21: =IF(ISERROR(F21),B21*Qone/(SQRT(I21)*$A21),(G21*Qone/SQRT(I21)*($A21+2*F21*root)^(2/3))^0.6/($A21+z*F21)) -> 0.4895306322 | G21: =($A21+2*F21*root)*(($A21+z*F21)*F21/($A21+2*F21*root))^(5/3)/(($A21*F21)^(5/3)/(B21*($A21+2*F21)^(2/3))+2*F21*(1+root)/ns*(z*F21/(2*(1+root)))^(5/3)) -> 0.02594950163 | H21: =F21*($A21+z*F21)/($A21+2*F21*root) -> 0.4664506266 | I21: 0.009495025105 | J21: 0.02508161488 | K21: 24.78862204 | L21: 2.091461522 | M21: 25.78949638 | N21: 0.6068612486 | O21: 0.02597423915 | P21: 0.5720011296 | Q21: 0.004655512548 | S21: 78438.56382 | T21: 0.000365425408 | U21: 22.5 | V21: 0.02513053285 | W21: 46.37785861 | X21: 1.215207505 | Y21: 24.58703768 | Z21: 0.3790504971 | AA21: 0.02556168949 | AB21: 0.3679056731 | AC21: 0.01318217239 | AD21: 0.02490822117 | AE21: 27.80506255 | AF21: 1.937648135 | AG21: 14.47310504 | AH21: 0.4676958234 | AI21: 0.02543764137 | AJ21: 0.4509073564 | AK21: 0.006487371051 | AO21: 1.059285469 | AP21: 0.7674475689
A22: 18.3 | B22: 0.02523780446 | C22: 41.30700083 | D22: 1.246950749 | E22: 26.76820916 | F22: =IF(ISERROR(F22),B22*Qone/(SQRT(I22)*$A22),(G22*Qone/SQRT(I22)*($A22+2*F22*root)^(2/3))^0.6/($A22+z*F22)) -> 0.4755937062 | G22: =($A22+2*F22*root)*(($A22+z*F22)*F22/($A22+2*F22*root))^(5/3)/(($A22*F22)^(5/3)/(B22*($A22+2*F22)^(2/3))+2*F22*(1+root)/ns*(z*F22/(2*(1+root)))^(5/3)) -> 0.02591012677 | H22: =F22*($A22+z*F22)/($A22+2*F22*root) -> 0.4545416853 | I22: 0.009636246219 | J22: 0.02509626933 | K22: 24.57478052 | L22: 2.104779349 | M22: 25.8800368 | N22: 0.589890027 | O22: 0.02592982937 | P22: 0.5580278703 | Q22: 0.004714661196 | S22: 140610.7265 | T22: 0.0006550697719 | U22: 22.5 | V22: 0.02502344483 | W22: 53.79332827 | X22: 1.183501137 | Y22: 23.94552941 | Z22: 0.354552366 | AA22: 0.02542486533 | AB22: 0.3447728276 | AC22: 0.01628897381 | AD22: 0.02470817957 | AE22: 32.77326342 | AF22: 1.769407748 | AG22: 13.21644716 | AH22: 0.4331305081 | AI22: 0.02519439384 | AJ22: 0.4186725302 | AK22: 0.008216199231 | AO22: 1.063874144 | AP22: 0.7701721701
A23: 19 | B23: 0.02524616423 | C23: 40.98097186 | D23: 1.249418641 | E23: 26.82145349 | F23: =IF(ISERROR(F23),B23*Qone/(SQRT(I23)*$A23),(G23*Qone/SQRT(I23)*($A23+2*F23*root)^(2/3))^0.6/($A23+z*F23)) -> 0.4625219141 | G23: =($A23+2*F23*root)*(($A23+z*F23)*F23/($A23+2*F23*root))^(5/3)/(($A23*F23)^(5/3)/(B23*($A23+2*F23)^(2/3))+2*F23*(1+root)/ns*(z*F23/(2*(1+root)))^(5/3)) -> 0.02587532882 | H23: =F23*($A23+z*F23)/($A23+2*F23*root) -> 0.443261277 | I23: 0.009778881069 | J23: 0.02511043228 | K23: 24.37340758 | L23: 2.117696127 | M23: 25.96779209 | N23: 0.5739487074 | O23: 0.02589082859 | P23: 0.5447432413 | Q23: 0.004775216138 | S23: 252061.9381 | T23: 0.001174292747 | U23: 22.5 | V23: 0.0249300437 | W23: 63.54217829 | X23: 1.15598193 | Y23: 23.38873908 | Z23: 0.3292113343 | AA23: 0.0253012056 | AB23: 0.3207539979 | AC23: 0.02064658731 | AD23: 0.02451798274 | AE23: 39.60276144 | AF23: 1.62321772 | AG23: 12.12449265 | AH23: 0.396988176 | AI23: 0.02496001624 | AJ23: 0.3847898434 | AK23: 0.01077638391 | AO23: 1.06842347 | AP23: 0.7729159469
A24: 19.7 | B24: 0.02525429264 | C24: 40.67193938 | D24: 1.251817042 | E24: 26.87330881 | F24: =IF(ISERROR(F24),B24*Qone/(SQRT(I24)*$A24),(G24*Qone/SQRT(I24)*($A24+2*F24*root)^(2/3))^0.6/($A24+z*F24)) -> 0.4502345745 | G24: =($A24+2*F24*root)*(($A24+z*F24)*F24/($A24+2*F24*root))^(5/3)/(($A24*F24)^(5/3)/(B24*($A24+2*F24)^(2/3))+2*F24*(1+root)/ns*(z*F24/(2*(1+root)))^(5/3)) -> 0.02584448631 | H24: =F24*($A24+z*F24)/($A24+2*F24*root) -> 0.4325625889 | I24: 0.009922610913 | J24: 0.02512413708 | K24: 24.18337158 | L24: 2.130237474 | M24: 26.05294463 | N24: 0.5589432881 | O24: 0.02585649516 | P24: 0.5321008144 | Q24: 0.004836950807 | S24: 451851.8764 | T24: 0.002105063482 | U24: 22.5 | V24: 0.02484861501 | W24: 76.44974956 | X24: 1.132203852 | Y24: 22.90764224 | Z24: 0.3034076153 | AA24: 0.02518937963 | AB24: 0.296201655 | AC24: 0.02685298105 | AD24: 0.02430764765 | AE24: 49.00721408 | AF24: 1.49759892 | AG24: 11.18619325 | AH24: 0.3599033536 | AI24: 0.02470480638 | AJ24: 0.3498328825 | AK24: 0.01463147677 | AO24: 1.072929045 | AP24: 0.775671166
A25: 20.4 | B25: 0.02526220405 | C25: 40.37845639 | D25: 1.254150223 | E25: 26.92385999 | F25: =IF(ISERROR(F25),B25*Qone/(SQRT(I25)*$A25),(G25*Qone/SQRT(I25)*($A25+2*F25*root)^(2/3))^0.6/($A25+z*F25)) -> 0.4386608539 | G25: =($A25+2*F25*root)*(($A25+z*F25)*F25/($A25+2*F25*root))^(5/3)/(($A25*F25)^(5/3)/(B25*($A25+2*F25)^(2/3))+2*F25*(1+root)/ns*(z*F25/(2*(1+root)))^(5/3)) -> 0.02581707918 | H25: =F25*($A25+z*F25)/($A25+2*F25*root) -> 0.4224029818 | I25: 0.010067173 | J25: 0.02513741378 | K25: 24.00367923 | L25: 2.142426559 | M25: 26.13565899 | N25: 0.544790998 | O25: 0.02582620852 | P25: 0.520057643 | Q25: 0.004899676564 | S25: 809999.7951 | T25: 0.003773583951 | U25: 22.5 | V25: 0.02477772615 | W25: 93.67792346 | X25: 1.111741537 | Y25: 22.49363253 | Z25: 0.2775408741 | AA25: 0.02508836103 | AB25: 0.2714922689 | AC25: 0.03583662019 | AD25: 0.02412214446 | AE25: 62.01517189 | AF25: 1.390631543 | AG25: 10.38720913 | AH25: 0.3234344161 | AI25: 0.0244761698 | AJ25: 0.3152655935 | AK25: 0.02049479991 | AO25: 1.07738768 | AP25: 0.7784315692
A26: 21.1 | B26: 0.02526991149 | C26: 40.09924373 | D26: 1.25642206 | E26: 26.97318402 | F26: =IF(ISERROR(F26),B26*Qone/(SQRT(I26)*$A26),(G26*Qone/SQRT(I26)*($A26+2*F26*root)^(2/3))^0.6/($A26+z*F26)) -> 0.4277383025 | G26: =($A26+2*F26*root)*(($A26+z*F26)*F26/($A26+2*F26*root))^(5/3)/(($A26*F26)^(5/3)/(B26*($A26+2*F26)^(2/3))+2*F26*(1+root)/ns*(z*F26/(2*(1+root)))^(5/3)) -> 0.02579266949 | H26: =F26*($A26+z*F26)/($A26+2*F26*root) -> 0.4127436038 | I26: 0.01021234978 | J26: 0.02515028951 | K26: 23.83345456 | L26: 2.154284402 | M26: 26.21608418 | N26: 0.5314186631 | O26: 0.02579944631 | P26: 0.5085740578 | Q26: 0.004963235481 | AO26: 1.081797128 | AP26: 0.7811920824
A27: 21.8 | B27: 0.0252774268 | C27: 39.83316571 | D27: 1.258636076 | E27: 27.02135097 | F27: =IF(ISERROR(F27),B27*Qone/(SQRT(I27)*$A27),(G27*Qone/SQRT(I27)*($A27+2*F27*root)^(2/3))^0.6/($A27+z*F27)) -> 0.4174116436 | G27: =($A27+2*F27*root)*(($A27+z*F27)*F27/($A27+2*F27*root))^(5/3)/(($A27*F27)^(5/3)/(B27*($A27+2*F27)^(2/3))+2*F27*(1+root)/ns*(z*F27/(2*(1+root)))^(5/3)) -> 0.02577088635 | H27: =F27*($A27+z*F27)/($A27+2*F27*root) -> 0.4035490318 | I27: 0.01035796043 | J27: 0.02516278887 | K27: 23.67192174 | L27: 2.165830139 | M27: 26.29435562 | N27: 0.5187613497 | O27: 0.02577576635 | P27: 0.4976134478 | Q27: 0.005027494679 | AO27: 1.086155884 | AP27: 0.783948586
A28: 22.5 | B28: 0.02528476077 | C28: 39.57921007 | D28: 1.260795491 | E28: 27.06842481 | F28: =IF(ISERROR(F28),B28*Qone/(SQRT(I28)*$A28),(G28*Qone/SQRT(I28)*($A28+2*F28*root)^(2/3))^0.6/($A28+z*F28)) -> 0.4076317674 | G28: =($A28+2*F28*root)*(($A28+z*F28)*F28/($A28+2*F28*root))^(5/3)/(($A28*F28)^(5/3)/(B28*($A28+2*F28)^(2/3))+2*F28*(1+root)/ns*(z*F28/(2*(1+root)))^(5/3)) -> 0.02575141396 | H28: =F28*($A28+z*F28)/($A28+2*F28*root) -> 0.3947869404 | I28: 0.01050385419 | J28: 0.02517493423 | K28: 23.51839082 | L28: 2.177081246 | M28: 26.37059675 | N28: 0.5067612312 | O28: 0.02575479232 | P28: 0.4871420373 | Q28: 0.005092341836 | U28: =A28 -> 22.5 | V28: =QTone*2650*3600 -> 38160 | W28: =I28 -> 0.01050385419 | AO28: 1.090463017 | AP28: 0.7866977352
A29: 23.2 | B29: 0.02529192328 | C29: 39.33647117 | D29: 1.26290325 | E29: 27.11446409 | F29: =IF(ISERROR(F29),B29*Qone/(SQRT(I29)*$A29),(G29*Qone/SQRT(I29)*($A29+2*F29*root)^(2/3))^0.6/($A29+z*F29)) -> 0.3983548897 | G29: =($A29+2*F29*root)*(($A29+z*F29)*F29/($A29+2*F29*root))^(5/3)/(($A29*F29)^(5/3)/(B29*($A29+2*F29)^(2/3))+2*F29*(1+root)/ns*(z*F29/(2*(1+root)))^(5/3)) -> 0.02573398206 | H29: =F29*($A29+z*F29)/($A29+2*F29*root) -> 0.3864278011 | I29: 0.01064990499 | J29: 0.025186746 | K29: 23.37224589 | L29: 2.188053725 | M29: 26.44492045 | N29: 0.4953666375 | O29: 0.02573620242 | P29: 0.4771286679 | Q29: 0.005157681617 | U29: =A28 -> 22.5 | V29: =QTtwo*2650*3600 -> 38160 | W29: =Q28 -> 0.005092341836 | AO29: 1.094718049 | AP29: 0.7894368161
A30: 23.9 | B30: 0.0252989234 | C30: 39.1041359 | D30: 1.264962057 | E30: 27.15952258 | F30: =IF(ISERROR(F30),B30*Qone/(SQRT(I30)*$A30),(G30*Qone/SQRT(I30)*($A30+2*F30*root)^(2/3))^0.6/($A30+z*F30)) -> 0.3895418444 | G30: =($A30+2*F30*root)*(($A30+z*F30)*F30/($A30+2*F30*root))^(5/3)/(($A30*F30)^(5/3)/(B30*($A30+2*F30)^(2/3))+2*F30*(1+root)/ns*(z*F30/(2*(1+root)))^(5/3)) -> 0.02571835829 | H30: =F30*($A30+z*F30)/($A30+2*F30*root) -> 0.3784446097 | I30: 0.0107960072 | J30: 0.02519824285 | K30: 23.23293521 | L30: 2.198762272 | M30: 26.51743017 | N30: 0.484531252 | O30: 0.02571972015 | P30: 0.4675445889 | Q30: 0.005223432793 | AO30: 1.098920858 | AP30: 0.7921636317
A31: 24.6 | B31: 0.02530576947 | C31: 38.88147188 | D31: 1.266974403 | E31: 27.20364978 | F31: =IF(ISERROR(F31),B31*Qone/(SQRT(I31)*$A31),(G31*Qone/SQRT(I31)*($A31+2*F31*root)^(2/3))^0.6/($A31+z*F31)) -> 0.3811574872 | G31: =($A31+2*F31*root)*(($A31+z*F31)*F31/($A31+2*F31*root))^(5/3)/(($A31*F31)^(5/3)/(B31*($A31+2*F31)^(2/3))+2*F31*(1+root)/ns*(z*F31/(2*(1+root)))^(5/3)) -> 0.02570434197 | H31: =F31*($A31+z*F31)/($A31+2*F31*root) -> 0.3708126399 | I31: 0.01094207216 | J31: 0.02520944193 | K31: 23.09996284 | L31: 2.209220414 | M31: 26.58822104 | N31: 0.4742134323 | O31: 0.02570510693 | P31: 0.45836326 | Q31: 0.005289525913 | AO31: 1.103071597 | AP31: 0.794876409
A32: 25.3 | B32: 0.02531246917 | C32: 38.66781737 | D32: 1.268942584 | E32: 27.24689133 | F32: =IF(ISERROR(F32),B32*Qone/(SQRT(I32)*$A32),(G32*Qone/SQRT(I32)*($A32+2*F32*root)^(2/3))^0.6/($A32+z*F32)) -> 0.3731701883 | G32: =($A32+2*F32*root)*(($A32+z*F32)*F32/($A32+2*F32*root))^(5/3)/(($A32*F32)^(5/3)/(B32*($A32+2*F32)^(2/3))+2*F32*(1+root)/ns*(z*F32/(2*(1+root)))^(5/3)) -> 0.02569175908 | H32: =F32*($A32+z*F32)/($A32+2*F32*root) -> 0.3635092228 | I32: 0.01108802538 | J32: 0.02522035898 | K32: 22.97288161 | L32: 2.219440635 | M32: 26.65738069 | N32: 0.4643756315 | O32: 0.02569215606 | P32: 0.4495601668 | Q32: 0.005355901417 | S32: NOTE | AO32: 1.107170634 | AP32: 0.797573725
A33: 26 | B33: 0.02531902959 | C33: 38.46257274 | D33: 1.270868723 | E33: 27.28928949 | F33: =IF(ISERROR(F33),B33*Qone/(SQRT(I33)*$A33),(G33*Qone/SQRT(I33)*($A33+2*F33*root)^(2/3))^0.6/($A33+z*F33)) -> 0.3655514013 | G33: =($A33+2*F33*root)*(($A33+z*F33)*F33/($A33+2*F33*root))^(5/3)/(($A33*F33)^(5/3)/(B33*($A33+2*F33)^(2/3))+2*F33*(1+root)/ns*(z*F33/(2*(1+root)))^(5/3)) -> 0.0256804581 | H33: =F33*($A33+z*F33)/($A33+2*F33*root) -> 0.356513548 | I33: 0.01123380421 | J33: 0.02523100853 | K33: 22.85128714 | L33: 2.229434478 | M33: 26.72499007 | N33: 0.4549839034 | O33: 0.02568068775 | P33: 0.4411126502 | Q33: 0.005422508075 | S33: Cells for VBA output, STAB writes to these cells | AO33: 1.111218503 | AP33: 0.800254446
A34: 26.7 | B34: 0.02532545732 | C34: 38.26519312 | D34: 1.272754789 | E34: 27.33088339 | F34: =IF(ISERROR(F34),B34*Qone/(SQRT(I34)*$A34),(G34*Qone/SQRT(I34)*($A34+2*F34*root)^(2/3))^0.6/($A34+z*F34)) -> 0.3582752934 | G34: =($A34+2*F34*root)*(($A34+z*F34)*F34/($A34+2*F34*root))^(5/3)/(($A34*F34)^(5/3)/(B34*($A34+2*F34)^(2/3))+2*F34*(1+root)/ns*(z*F34/(2*(1+root)))^(5/3)) -> 0.02567030663 | H34: =F34*($A34+z*F34)/($A34+2*F34*root) -> 0.3498064859 | I34: 0.01137935599 | J34: 0.02524140398 | K34: 22.7348127 | L34: 2.239212645 | M34: 26.79112412 | N34: 0.4460074781 | O34: 0.02567054506 | P34: 0.4329997492 | Q34: 0.005489301715 | S34: Cells with formulas on these worksheet | AO34: 1.115215868 | AP34: 0.8029176779
A35: 27.4 | B35: 0.02533175846 | C35: 38.07518214 | D35: 1.274602611 | E35: 27.37170939 | F35: =IF(ISERROR(F35),B35*Qone/(SQRT(I35)*$A35),(G35*Qone/SQRT(I35)*($A35+2*F35*root)^(2/3))^0.6/($A35+z*F35)) -> 0.3513184283 | G35: =($A35+2*F35*root)*(($A35+z*F35)*F35/($A35+2*F35*root))^(5/3)/(($A35*F35)^(5/3)/(B35*($A35+2*F35)^(2/3))+2*F35*(1+root)/ns*(z*F35/(2*(1+root)))^(5/3)) -> 0.02566118856 | H35: =F35*($A35+z*F35)/($A35+2*F35*root) -> 0.3433704284 | I35: =IF(ISERROR(I35),0.001,(G35/B35)^1.5*C35/(9810*H35)) -> 0.0115246365 | J35: 0.02525155777 | K35: 22.62312484 | L35: 2.24878507 | M35: 26.85585232 | N35: =IF(ISERROR(N35),J35*Qtwo/(SQRT(Q35)*$A35),(O35*Qtwo/SQRT(Q35)*($A35+2*N35*root)^(2/3))^0.6/($A35+z*N35)) -> 0.4374183965 | O35: =($A35+2*N35*root)*(($A35+z*N35)*N35/($A35+2*N35*root))^(5/3)/(($A35*N35)^(5/3)/(J35*($A35+2*N35)^(2/3))+2*N35*(1+root)/ns*(z*N35/(2*(1+root)))^(5/3)) -> 0.02566159053 | P35: =N35*($A35+z*N35)/($A35+2*N35*root) -> 0.4252020568 | Q35: =IF(ISERROR(Q35),0.001,(O35/J35)^1.5*K35/(9810*P35)) -> 0.005556244162 | S35: Two things consntrain moving cells on this worksheet | AO35: =Qone/(A35*SQRT(9.81)*F35^1.5) -> 1.119163486 | AP35: =Qtwo/(A35*SQRT(9.81)*N35^1.5) -> 0.805562726
A36: 28.1 | B36: 0.02533793868 | C36: 37.89208648 | D36: 1.276413887 | E36: 27.41180132 | F36: =IF(ISERROR(F36),B36*Qone/(SQRT(I36)*$A36),(G36*Qone/SQRT(I36)*($A36+2*F36*root)^(2/3))^0.6/($A36+z*F36)) -> 0.3446594925 | G36: =($A36+2*F36*root)*(($A36+z*F36)*F36/($A36+2*F36*root))^(5/3)/(($A36*F36)^(5/3)/(B36*($A36+2*F36)^(2/3))+2*F36*(1+root)/ns*(z*F36/(2*(1+root)))^(5/3)) -> 0.02565300175 | H36: =F36*($A36+z*F36)/($A36+2*F36*root) -> 0.337189146 | I36: 0.01166960863 | J36: 0.02526148141 | K36: 22.51591961 | L36: 2.258161 | M36: 26.91923926 | N36: 0.429191194 | O36: 0.02565370338 | P36: 0.4177015883 | Q36: 0.005623302359 | S36: First, the STAB VBA code writes to certain cells. You can't change these locations without changing the VBA code. | AO36: 1.123062189 | AP36: 0.8081890612
A37: 28.8 | B37: 0.02534400328 | C37: 37.71549116 | D37: 1.278190205 | E37: 27.45119071 | F37: =IF(ISERROR(F37),B37*Qone/(SQRT(I37)*$A37),(G37*Qone/SQRT(I37)*($A37+2*F37*root)^(2/3))^0.6/($A37+z*F37)) -> 0.3382790582 | G37: =($A37+2*F37*root)*(($A37+z*F37)*F37/($A37+2*F37*root))^(5/3)/(($A37*F37)^(5/3)/(B37*($A37+2*F37)^(2/3))+2*F37*(1+root)/ns*(z*F37/(2*(1+root)))^(5/3)) -> 0.02564565605 | H37: =F37*($A37+z*F37)/($A37+2*F37*root) -> 0.33124766 | I37: 0.01181424131 | J37: 0.02527118562 | K37: 22.41291929 | L37: 2.267349053 | M37: 26.98134508 | N37: 0.4213026265 | O37: 0.02564677713 | P37: 0.4104816611 | Q37: 0.005690447631 | S37: Second, charts on the worksheet STAB OUTPUT reference particular cells on this worksheet | AO37: 1.12691286 | AP37: 0.8107962928
A38: 29.5 | B38: 0.02534995718 | C38: 37.5450155 | D38: 1.279933043 | E38: 27.48990702 | F38: =IF(ISERROR(F38),B38*Qone/(SQRT(I38)*$A38),(G38*Qone/SQRT(I38)*($A38+2*F38*root)^(2/3))^0.6/($A38+z*F38)) -> 0.3321593779 | G38: =($A38+2*F38*root)*(($A38+z*F38)*F38/($A38+2*F38*root))^(5/3)/(($A38*F38)^(5/3)/(B38*($A38+2*F38)^(2/3))+2*F38*(1+root)/ns*(z*F38/(2*(1+root)))^(5/3)) -> 0.02563907165 | H38: =F38*($A38+z*F38)/($A38+2*F38*root) -> 0.3255321281 | I38: 0.01195850865 | J38: 0.02528068036 | K38: 22.31386953 | L38: 2.276357275 | M38: 27.04222586 | N38: 0.4137314312 | O38: 0.02564071767 | P38: 0.4035267851 | Q38: 0.005757655067 | AO38: 1.130716418 | AP38: 0.8133841452
A39: 30.2 | B39: 0.025355805 | C39: 37.3803095 | D39: 1.281643787 | E39: 27.52797781 | F39: =IF(ISERROR(F39),B39*Qone/(SQRT(I39)*$A39),(G39*Qone/SQRT(I39)*($A39+2*F39*root)^(2/3))^0.6/($A39+z*F39)) -> 0.3262842051 | G39: =($A39+2*F39*root)*(($A39+z*F39)*F39/($A39+2*F39*root))^(5/3)/(($A39*F39)^(5/3)/(B39*($A39+2*F39)^(2/3))+2*F39*(1+root)/ns*(z*F39/(2*(1+root)))^(5/3)) -> 0.02563317771 | H39: =F39*($A39+z*F39)/($A39+2*F39*root) -> 0.320029741 | I39: 0.01210238915 | J39: 0.02528997573 | K39: 22.21853703 | L39: 2.285193691 | M39: 27.10193915 | N39: 0.4064581289 | O39: 0.02563544239 | P39: 0.3968225733 | Q39: 0.005824902883 | AO39: 1.134473806 | AP39: 0.8159524084
A40: 30.9 | B40: 0.02536155106 | C40: 37.22105073 | D40: 1.283323732 | E40: 27.56542888 | F40: =IF(ISERROR(F40),B40*Qone/(SQRT(I40)*$A40),(G40*Qone/SQRT(I40)*($A40+2*F40*root)^(2/3))^0.6/($A40+z*F40)) -> 0.3206386373 | G40: =($A40+2*F40*root)*(($A40+z*F40)*F40/($A40+2*F40*root))^(5/3)/(($A40*F40)^(5/3)/(B40*($A40+2*F40)^(2/3))+2*F40*(1+root)/ns*(z*F40/(2*(1+root)))^(5/3)) -> 0.02562791118 | H40: =F40*($A40+z*F40)/($A40+2*F40*root) -> 0.3147286306 | I40: 0.01224586504 | J40: 0.02529907803 | K40: 22.12670686 | L40: 2.293863853 | M40: 27.16051855 | N40: 0.3994647899 | O40: 0.02563087468 | P40: 0.3903556019 | Q40: 0.005892172567 | AO40: 1.138185979 | AP40: 0.8185010762
A41: 31.6 | B41: 0.02536719941 | C41: 37.06694161 | D41: 1.284974098 | E41: 27.60228446 | F41: =IF(ISERROR(F41),B41*Qone/(SQRT(I41)*$A41),(G41*Qone/SQRT(I41)*($A41+2*F41*root)^(2/3))^0.6/($A41+z*F41)) -> 0.315208979 | G41: =($A41+2*F41*root)*(($A41+z*F41)*F41/($A41+2*F41*root))^(5/3)/(($A41*F41)^(5/3)/(B41*($A41+2*F41)^(2/3))+2*F41*(1+root)/ns*(z*F41/(2*(1+root)))^(5/3)) -> 0.0256232158 | H41: =F41*($A41+z*F41)/($A41+2*F41*root) -> 0.3096177865 | I41: 0.01238892181 | J41: 0.02530799777 | K41: 22.03818151 | L41: 2.302375871 | M41: 27.21802546 | N41: 0.3927349761 | O41: 0.02562695094 | P41: 0.384113426 | Q41: 0.00595944733 | AO41: 1.141853898 | AP41: 0.8210300239
A42: 32.3 | B42: 0.02537275384 | C42: 36.91770698 | D42: 1.286596025 | E42: 27.63856732 | F42: =IF(ISERROR(F42),B42*Qone/(SQRT(I42)*$A42),(G42*Qone/SQRT(I42)*($A42+2*F42*root)^(2/3))^0.6/($A42+z*F42)) -> 0.3099826207 | G42: =($A42+2*F42*root)*(($A42+z*F42)*F42/($A42+2*F42*root))^(5/3)/(($A42*F42)^(5/3)/(B42*($A42+2*F42)^(2/3))+2*F42*(1+root)/ns*(z*F42/(2*(1+root)))^(5/3)) -> 0.02561904122 | H42: =F42*($A42+z*F42)/($A42+2*F42*root) -> 0.3046869822 | I42: 0.0125315477 | J42: 0.02531674179 | K42: 21.95277833 | L42: 2.310735459 | M42: 27.27449785 | N42: 0.3862534974 | O42: 0.02562361135 | P42: 0.378084407 | Q42: 0.006026712963 | AO42: 1.145478524 | AP42: 0.8235393067
A43: 33 | B43: 0.02537821794 | C43: 36.77309196 | D43: 1.288190591 | E43: 27.67429887 | F43: =IF(ISERROR(F43),B43*Qone/(SQRT(I43)*$A43),(G43*Qone/SQRT(I43)*($A43+2*F43*root)^(2/3))^0.6/($A43+z*F43)) -> 0.3049479323 | G43: =($A43+2*F43*root)*(($A43+z*F43)*F43/($A43+2*F43*root))^(5/3)/(($A43*F43)^(5/3)/(B43*($A43+2*F43)^(2/3))+2*F43*(1+root)/ns*(z*F43/(2*(1+root)))^(5/3)) -> 0.02561534233 | H43: =F43*($A43+z*F43)/($A43+2*F43*root) -> 0.2999267068 | I43: 0.0126737333 | J43: 0.02532531722 | K43: 21.87032846 | L43: 2.318948461 | M43: 27.32997627 | N43: 0.3800063379 | O43: 0.0256208031 | P43: 0.372257693 | Q43: 0.00609395698 | AO43: 1.149060809 | AP43: 0.826028995
A44: 33.7 | B44: 0.02538359508 | C44: 36.63286008 | D44: 1.289758808 | E44: 27.70949931 | F44: =IF(ISERROR(F44),B44*Qone/(SQRT(I44)*$A44),(G44*Qone/SQRT(I44)*($A44+2*F44*root)^(2/3))^0.6/($A44+z*F44)) -> 0.3000941694 | G44: =($A44+2*F44*root)*(($A44+z*F44)*F44/($A44+2*F44*root))^(5/3)/(($A44*F44)^(5/3)/(B44*($A44+2*F44)^(2/3))+2*F44*(1+root)/ns*(z*F44/(2*(1+root)))^(5/3)) -> 0.02561207857 | H44: =F44*($A44+z*F44)/($A44+2*F44*root) -> 0.2953281054 | I44: 0.01281547128 | J44: 0.02533373079 | K44: 21.79067553 | L44: 2.327020382 | M44: 27.38449887 | N44: 0.3739805356 | O44: 0.02561847882 | P44: 0.3666231475 | Q44: 0.006161168493 | AO44: 1.152601697 | AP44: 0.8284991979
A45: 34.4 | B45: 0.02538888843 | C45: 36.49679156 | D45: 1.291301633 | E45: 27.74418767 | F45: =IF(ISERROR(F45),B45*Qone/(SQRT(I45)*$A45),(G45*Qone/SQRT(I45)*($A45+2*F45*root)^(2/3))^0.6/($A45+z*F45)) -> 0.2954113893 | G45: =($A45+2*F45*root)*(($A45+z*F45)*F45/($A45+2*F45*root))^(5/3)/(($A45*F45)^(5/3)/(B45*($A45+2*F45)^(2/3))+2*F45*(1+root)/ns*(z*F45/(2*(1+root)))^(5/3)) -> 0.02560921342 | H45: =F45*($A45+z*F45)/($A45+2*F45*root) -> 0.2908829237 | I45: 0.01295675604 | J45: 0.02534198881 | K45: 21.7136744 | L45: 2.334956413 | M45: 27.4381016 | N45: 0.3681640836 | O45: 0.02561659592 | P45: 0.3611712928 | Q45: 0.006228338019 | AO45: 1.156102118 | AP45: 0.8309500565
A46: 35.1 | B46: 0.02539410099 | C46: 36.36468188 | D46: 1.292819969 | E46: 27.77838194 | F46: =IF(ISERROR(F46),B46*Qone/(SQRT(I46)*$A46),(G46*Qone/SQRT(I46)*($A46+2*F46*root)^(2/3))^0.6/($A46+z*F46)) -> 0.2908903773 | G46: =($A46+2*F46*root)*(($A46+z*F46)*F46/($A46+2*F46*root))^(5/3)/(($A46*F46)^(5/3)/(B46*($A46+2*F46)^(2/3))+2*F46*(1+root)/ns*(z*F46/(2*(1+root)))^(5/3)) -> 0.02560671394 | H46: =F46*($A46+z*F46)/($A46+2*F46*root) -> 0.286583459 | I46: 0.01309758352 | J46: 0.02535009725 | K46: 21.63919023 | L46: 2.342761457 | M46: 27.49081837 | N46: 0.3625458437 | O46: 0.02561511605 | P46: 0.3558932586 | Q46: 0.006295457303 | AO46: 1.159562983 | AP46: 0.833381738
A47: 35.8 | B47: 0.02539923559 | C47: 36.23634038 | D47: 1.294314668 | E47: 27.81209914 | F47: =IF(ISERROR(F47),B47*Qone/(SQRT(I47)*$A47),(G47*Qone/SQRT(I47)*($A47+2*F47*root)^(2/3))^0.6/($A47+z*F47)) -> 0.2865225805 | G47: =($A47+2*F47*root)*(($A47+z*F47)*F47/($A47+2*F47*root))^(5/3)/(($A47*F47)^(5/3)/(B47*($A47+2*F47)^(2/3))+2*F47*(1+root)/ns*(z*F47/(2*(1+root)))^(5/3)) -> 0.02560455034 | H47: =F47*($A47+z*F47)/($A47+2*F47*root) -> 0.282422515 | I47: 0.01323795094 | J47: 0.0253580617 | K47: 21.56709751 | L47: 2.350440147 | M47: 27.54268123 | N47: 0.3571154679 | O47: 0.02561400461 | P47: 0.3507807355 | Q47: 0.006362519168 | AO47: 1.162985191 | AP47: 0.8357944314
A48: 36.5 | B48: 0.02540429491 | C48: 36.11158911 | D48: 1.295786539 | E48: 27.84535536 | F48: =IF(ISERROR(F48),B48*Qone/(SQRT(I48)*$A48),(G48*Qone/SQRT(I48)*($A48+2*F48*root)^(2/3))^0.6/($A48+z*F48)) -> 0.2823000487 | G48: =($A48+2*F48*root)*(($A48+z*F48)*F48/($A48+2*F48*root))^(5/3)/(($A48*F48)^(5/3)/(B48*($A48+2*F48)^(2/3))+2*F48*(1+root)/ns*(z*F48/(2*(1+root)))^(5/3)) -> 0.02560269564 | H48: =F48*($A48+z*F48)/($A48+2*F48*root) -> 0.2783933619 | I48: 0.01337785668 | J48: 0.02536588748 | K48: 21.49727926 | L48: 2.35799687 | M48: 27.59372046 | N48: 0.3518633291 | O48: 0.02561323031 | P48: 0.3458259316 | Q48: 0.006429517385 | AO48: 1.166369616 | AP48: 0.8381883427
A49: 37.2 | B49: 0.02540928149 | C49: 35.99026174 | D49: 1.297236348 | E49: 27.87816588 | F49: =IF(ISERROR(F49),B49*Qone/(SQRT(I49)*$A49),(G49*Qone/SQRT(I49)*($A49+2*F49*root)^(2/3))^0.6/($A49+z*F49)) -> 0.2782153823 | G49: =($A49+2*F49*root)*(($A49+z*F49)*F49/($A49+2*F49*root))^(5/3)/(($A49*F49)^(5/3)/(B49*($A49+2*F49)^(2/3))+2*F49*(1+root)/ns*(z*F49/(2*(1+root)))^(5/3)) -> 0.02560112535 | H49: =F49*($A49+z*F49)/($A49+2*F49*root) -> 0.2744896989 | I49: 0.01351730005 | J49: 0.0253735796 | K49: 21.42962633 | L49: 2.365435779 | M49: 27.64396474 | N49: 0.3467804587 | O49: 0.02561276484 | P49: 0.3410215344 | Q49: 0.006496446558 | AO49: 1.169717117 | AP49: 0.8405636924
A50: 37.9 | B50: 0.02541419775 | C50: 35.8722026 | D50: 1.298664821 | E50: 27.91054517 | F50: =IF(ISERROR(F50),B50*Qone/(SQRT(I50)*$A50),(G50*Qone/SQRT(I50)*($A50+2*F50*root)^(2/3))^0.6/($A50+z*F50)) -> 0.2742616842 | G50: =($A50+2*F50*root)*(($A50+z*F50)*F50/($A50+2*F50*root))^(5/3)/(($A50*F50)^(5/3)/(B50*($A50+2*F50)^(2/3))+2*F50*(1+root)/ns*(z*F50/(2*(1+root)))^(5/3)) -> 0.02559981723 | H50: =F50*($A50+z*F50)/($A50+2*F50*root) -> 0.2707056214 | I50: 0.01365628123 | J50: 0.0253811428 | K50: 21.36403669 | L50: 2.372760815 | M50: 27.69344126 | N50: 0.341858491 | O50: 0.02561258251 | P50: 0.3363606743 | Q50: 0.00656330203 | AO50: 1.173028528 | AP50: 0.8429207116
A51: 38.6 | B51: 0.02541904595 | C51: 35.75726582 | D51: 1.300072647 | E51: 27.94250698 | F51: =IF(ISERROR(F51),B51*Qone/(SQRT(I51)*$A51),(G51*Qone/SQRT(I51)*($A51+2*F51*root)^(2/3))^0.6/($A51+z*F51)) -> 0.2704325182 | G51: =($A51+2*F51*root)*(($A51+z*F51)*F51/($A51+2*F51*root))^(5/3)/(($A51*F51)^(5/3)/(B51*($A51+2*F51)^(2/3))+2*F51*(1+root)/ns*(z*F51/(2*(1+root)))^(5/3)) -> 0.02559875101 | H51: =F51*($A51+z*F51)/($A51+2*F51*root) -> 0.2670355902 | I51: 0.0137948011 | J51: 0.02538858128 | K51: 21.30041483 | L51: 2.379975535 | M51: 27.74217386 | N51: 0.3370896093 | O51: 0.02561265966 | P51: 0.3318368899 | Q51: 0.006630079839 | AO51: 1.176304664 | AP51: 0.8452596521
A52: 39.3 | B52: 0.02542382829 | C52: 35.64531454 | D52: 1.301460482 | E52: 27.9740644 | F52: =IF(ISERROR(F52),B52*Qone/(SQRT(I52)*$A52),(G52*Qone/SQRT(I52)*($A52+2*F52*root)^(2/3))^0.6/($A52+z*F52)) -> 0.2667218703 | G52: =($A52+2*F52*root)*(($A52+z*F52)*F52/($A52+2*F52*root))^(5/3)/(($A52*F52)^(5/3)/(B52*($A52+2*F52)^(2/3))+2*F52*(1+root)/ns*(z*F52/(2*(1+root)))^(5/3)) -> 0.02559790824 | H52: =F52*($A52+z*F52)/($A52+2*F52*root) -> 0.263474404 | I52: 0.01393286118 | J52: 0.02539589983 | K52: 21.23867138 | L52: 2.387083818 | M52: 27.79019045 | N52: 0.3324665129 | O52: 0.02561297562 | P52: 0.3274441089 | Q52: 0.006696776464 | AO52: 1.17954632 | AP52: 0.8475807395
A53: 40 | B53: 0.02542854681 | C53: 35.53622022 | D53: 1.30282895 | E53: 28.00522986 | F53: =IF(ISERROR(F53),B53*Qone/(SQRT(I53)*$A53),(G53*Qone/SQRT(I53)*($A53+2*F53*root)^(2/3))^0.6/($A53+z*F53)) -> 0.2631241144 | G53: =($A53+2*F53*root)*(($A53+z*F53)*F53/($A53+2*F53*root))^(5/3)/(($A53*F53)^(5/3)/(B53*($A53+2*F53)^(2/3))+2*F53*(1+root)/ns*(z*F53/(2*(1+root)))^(5/3)) -> 0.02559727203 | H53: =F53*($A53+z*F53)/($A53+2*F53*root) -> 0.2600171744 | I53: 0.0140704635 | J53: 0.02540310225 | K53: 21.17872241 | L53: 2.394088896 | M53: 27.83751274 | N53: 0.3279823589 | O53: 0.02561351079 | P53: 0.3231766047 | Q53: 0.006763389018 | AO53: 1.182754267 | AP53: 0.8498842344
B54: Case 1 Surface | J54: Case 2 Surface
B55: GSD @ mean width | E55: For convenient local reference | J55: GSD @ mean width
B56: D (mm) | C56: Fi (%ft) | D56: =Qone -> 20 | J56: D (mm) | K56: Fi (%ft) | AO56: =Qone -> 20 | AP56: =Qtwo -> 20
B57: 64 | C57: 100 | D57: =Qtwo -> 20 | J57: 64 | K57: 100
B58: 45.25 | C58: 82.70998984 | D58: =QTone*2650*3600 -> 38160 | J58: 45.25 | K58: 79.92280455
B59: 32 | C59: 61.8074358 | D59: =QTtwo*2650*3600 -> 38160 | J59: 32 | K59: 60.70729331
B60: 22.63 | C60: 37.36550026 | J60: 22.63 | K60: 41.53465214
B61: 16 | C61: 17.43399554 | J61: 16 | K61: 26.96172894
B62: 11.31 | C62: 8.731871294 | J62: 11.31 | K62: 20.72831339
B63: 8 | C63: 4.80932127 | J63: 8 | K63: 17.90978084
B64: 5.66 | C64: 1.936925643 | J64: 5.66 | K64: 15.81697406
B65: 4 | C65: 0.6127448326 | J65: 4 | K65: 14.83389524
B66: 2.83 | C66: 0 | J66: 2.83 | K66: 14.09958608
J67: 2 | K67: 13.58821282
J68: 1.4 | K68: 12.6184169
J69: 1 | K69: 11.00647568
J70: 0.707 | K70: 7.940190427
J71: 0.5 | K71: 4.60739852
J72: 0.35 | K72: 2.230055805
J73: 0.25 | K73: 0.7203137531
J74: 0.177 | K74: 0

Sheet STATE
A1: STATE DIAGRAM FOR GRAVEL-BED RIVERS WORKSHEET
A3: RULES, CONVENTIONS, AND UNITS
A4: 1. Cells for input data are highlighted in GREEN
A5: 2. LIGHT GREEN cells can be changed, but their default values are recommended
A6: 3. Grain-diameters must be in millimeters (mm)
A7: 4. Cumulative percentiles, not fractions, are used
A8: 5. Cumulative grain-size distribution percentiles must span from 0 to 100 %
A9: 6. The 0 and 100 % must be EXACTLY 0 and 100
A10: INSTRUCTIONS
A11: 1. In table below, enter grain size and cumulative % in order of decreasing grain size
A12: 2. Check input for errors, press Enter, and then click once on the Run STATE button
A13: 3. Plots will appear in the separate worksheets "STATE I OUTPUT" and "STATE II OUTPUT"
A15: D (mm) | B15: FIRST Transport CDF GSD (% Finer) | C15: SECOND Transport CDF GSD (% Finer) | E15: qT (m2/s) | F15: S (%/100) | H15: Statistic | I15: FIRST Transport GSD | J15: SECOND Transport GSD | K15: Units
A16: 64 | B16: 100 | C16: 100 | E16: 5e-09 | F16: 0.0001 | H16: Dmin | I16: 0.177 | J16: 0.177 | K16: mm
A17: 45.25 | B17: 93.67088608 | C17: 95.78059072 | E17: 1e-08 | F17: 0.0002 | H17: Dmax | I17: 64 | J17: 64 | K17: mm
A18: 32 | B18: 78.48101266 | C18: 85.65400844 | E18: 2e-08 | F18: 0.0005 | H18: D50 | I18: 21.67025304 | J18: 14.79864911 | K18: mm
A19: 22.63 | B19: 53.16455696 | C19: 68.77637131 | E19: 5e-08 | F19: 0.001 | H19: Dg | I19: 20.23278953 | J19: 7.469418612 | K19: mm
A20: 16 | B20: 27.84810127 | C20: 51.89873418 | E20: 1e-07 | F20: 0.002 | H20: sg | I20: 0.8595912664 | J20: 1.370013129 | K20: f/y-units
A21: 11.31 | B21: 15.18987342 | C21: 43.45991561 | E21: 2e-07 | F21: 0.005 | H21: Fs | I21: 0 | J21: 0 | K21: %
A22: 8 | B22: 8.860759494 | C22: 39.24050633 | E22: 5e-07 | F22: 0.01
A23: 5.66 | B23: 3.797468354 | C23: 35.8649789 | E23: 1e-06 | F23: 0.02
A24: 4 | B24: 1.265822785 | C24: 34.17721519 | E24: 2e-06 | F24: 0.05
A25: 2.83 | B25: 0 | C25: 32.84313725 | E25: 5e-06 | F25: 0.1
A26: 2 | C26: 31.8627451 | E26: 1e-05
A27: 1.4 | C27: 29.90196078 | E27: 2e-05
A28: 1 | C28: 26.47058824 | E28: 5e-05
A29: 0.707 | C29: 19.60784314 | E29: 0.0001
A30: 0.5 | C30: 11.76470588 | E30: 0.0002
A31: 0.35 | C31: 5.882352941 | E31: 0.0005
A32: 0.25 | C32: 1.960784314 | E32: 0.001
A33: 0.177 | C33: 0 | E33: 0.002
E34: 0.005
E35: 0.01
E36: 0.02
E37: 0.05
A49: PLOT DATA
A50: D (mm) | B50: GSD 1 Mean & STD
A51: =2^((LOG(I19)/LOG(2))-I20) -> 11.15046577 | B51: 16
A52: =I19 -> 20.23278953 | B52: 50
A53: =2^((LOG(I19)/LOG(2))+I20) -> 36.71288543 | B53: 84
A54: D (mm) | B54: GSD 2 Mean & STD
A55: =2^((LOG(J19)/LOG(2))-J20) -> 2.889826393 | B55: 16
A56: =J19 -> 7.469418612 | B56: 50
A57: =2^((LOG(J19)/LOG(2))+J20) -> 19.30642427 | B57: 84

Sheet STATE I OUTPUT
A1: State diagram developed using inverse calculation of the Wilcock & Crowe (2003) transport relation.
A2: 1. DIMENSIONLESS STATE DIAGRAM
A34: 2. DIMENSIONED STATE DIAGRAM | E34: òòòòò | F34: òòòòò | G34: òòòòò | H34: òòòòò | I34: òòòòò | J34: òòòòò | K34: òòòòò | L34: òòòòò | M34: òòòòò | N34: òòòòò | O34: òòòòò | P34: òòòòò

Sheet STATE II OUTPUT
A1: State diagram developed using inverse calculation of the Wilcock & Crowe (2003) transport relation.
A2: 1. DIMENSIONLESS SLOPE/TRANSPORT STATE DIAGRAM | R2: 3. Tramsport rate for q*t = 0.01 and 0.1
A34: 2. DIMENSIONED SLOPE/TRANSPORT STATE DIAGRAM | G34: òòòòò | H34: òòòòò | I34: òòòòò | J34: òòòòò | K34: òòòòò | L34: òòòòò | M34: òòòòò | N34: òòòòò | O34: òòòòò | P34: òòòòò

Sheet STATE plot DATA (hidden)
A1: DIMENSIONLESS STANDARD STATE DIAGRAM FIRST GSD RESULTS | M1: GAMMAS
A2: S=0.0001 | B2: S=0.0002 | C2: S=0.0005 | D2: S=0.001 | E2: S=0.002 | F2: S=0.005 | G2: S=0.01 | H2: S=0.02 | I2: S=0.05 | J2: S=0.1 | K2: q*T | M2: q*W | N2: G1=1.58,G2=4.13 | O2: G1=1.58,G2=4.13 | P2: G1=1.58,G2=4.13 | Q2: G1=1.58,G2=4.13 | R2: G1=1.58,G2=4.13 | S2: G1=1.58,G2=4.12 | T2: G1=1.58,G2=4.12 | U2: G1=1.58,G2=4.11 | V2: G1=1.58,G2=4.09 | W2: G1=1.55,G2=4.02 | X2: G1=1.51,G2=3.93 | Y2: G1=1.45,G2=3.76 | Z2: G1=1.36,G2=3.41 | AA2: G1=1.3,G2=3.07 | AB2: G1=1.25,G2=2.74 | AC2: G1=1.2,G2=2.35 | AD2: G1=1.16,G2=2.1 | AE2: G1=1.13,G2=1.88 | AF2: G1=1.1,G2=1.63 | AG2: G1=1.08,G2=1.49 | AH2: G1=1.07,G2=1.36 | AI2: G1=1.05,G2=1.23
A3: 2013.922199 | B3: 897.100353 | C3: 308.0191259 | D3: 137.2069222 | E3: 61.11873556 | F3: 20.98509876 | G3: 9.347798793 | H3: 4.163970981 | I3: 1.429698135 | J3: 0.6368581181 | K3: 4.318270891e-07 | M3: 0.6368581181 | N3: 4.318270891e-07 | O3: 8.636541783e-07 | P3: 1.727308357e-06 | Q3: 4.318270891e-06 | R3: 8.636541783e-06 | S3: 1.727308357e-05 | T3: 4.318270891e-05 | U3: 8.636541783e-05 | V3: 0.0001727308357 | W3: 0.0004318270891 | X3: 0.0008636541783 | Y3: 0.001727308357 | Z3: 0.004318270891 | AA3: 0.008636541783 | AB3: 0.01727308357 | AC3: 0.04318270891 | AD3: 0.08636541783 | AE3: 0.1727308357 | AF3: 0.4318270891 | AG3: 0.8636541783 | AH3: 1.727308357 | AI3: 4.318270891
A4: 2289.754835 | B4: 1019.969823 | C4: 350.2063202 | D4: 155.9991809 | E4: 69.48973514 | F4: 23.85927885 | G4: 10.62810047 | H4: 4.734280543 | I4: 1.625513745 | J4: 0.724084056 | K4: 8.636541783e-07 | M4: 445725.4518 | N4: 4.318270891e-07 | O4: 8.636541783e-07 | P4: 1.727308357e-06 | Q4: 4.318270891e-06 | R4: 8.636541783e-06 | S4: 1.727308357e-05 | T4: 4.318270891e-05 | U4: 8.636541783e-05 | V4: 0.0001727308357 | W4: 0.0004318270891 | X4: 0.0008636541783 | Y4: 0.001727308357 | Z4: 0.004318270891 | AA4: 0.008636541783 | AB4: 0.01727308357 | AC4: 0.04318270891 | AD4: 0.08636541783 | AE4: 0.1727308357 | AF4: 0.4318270891 | AG4: 0.8636541783 | AH4: 1.727308357 | AI4: 4.318270891
A5: 2603.366309 | B5: 1159.667854 | C5: 398.1715952 | D5: 177.3652819 | E5: 79.00725114 | F5: 27.12711499 | G5: 12.08375599 | H5: 5.38270136 | I5: 1.84814883 | J5: 0.8232567119 | K5: 1.727308357e-06
A6: 3084.806124 | B6: 1374.124911 | C6: 471.8053587 | D6: 210.1653947 | E6: 93.61804035 | F6: 32.14372491 | G6: 14.31840166 | H6: 6.378122841 | I6: 2.189926485 | J6: 0.9755013491 | K6: 4.318270891e-06
A7: 3507.310132 | B7: 1562.32905 | C7: 536.4251913 | D7: 238.9502577 | E7: 106.4402391 | F7: 36.54622285 | G7: 16.27949154 | H7: 7.251689075 | I7: 2.489865178 | J7: 1.109108848 | K7: 8.636541783e-06
A8: 3987.681517 | B8: 1776.310176 | C8: 609.8955439 | D8: 271.6775791 | E8: 121.0186035 | F8: 41.5516997 | G8: 18.509178 | H8: 8.244901477 | I8: 2.830884346 | J8: 1.261015618 | K8: 1.727308357e-05
A9: 4725.040518 | B9: 2104.76627 | C9: 722.6708413 | D9: 321.9132631 | E9: 143.3960567 | F9: 49.23499127 | G9: 21.93169531 | H9: 9.769459618 | I9: 3.354340908 | J9: 1.494189007 | K9: 4.318270891e-05
A10: 5369.859836 | B10: 2392.000622 | C10: 821.2926663 | D10: 365.8442918 | E10: 162.9651053 | F10: 55.95401799 | G10: 24.92468145 | H10: 11.10268338 | I10: 3.812102869 | J10: 1.69809878 | K10: 8.636541783e-05
A11: 6091.46314 | B11: 2713.438352 | C11: 931.6582103 | D11: 415.0065527 | E11: 184.8644029 | F11: 63.47313498 | G11: 28.27406729 | H11: 12.59466515 | I11: 4.324374346 | J11: 1.926289781 | K11: 0.0001727308357
A12: 7154.870757 | B12: 3187.132593 | C12: 1094.30098 | D12: 487.4556702 | E12: 217.1368158 | F12: 74.55385788 | G12: 33.20996821 | H12: 14.79335905 | I12: 5.079295209 | J12: 2.262568795 | K12: 0.0004318270891
A13: 8074.290697 | B13: 3596.687616 | C13: 1234.921569 | D13: 550.0950215 | E13: 245.0394748 | F13: 84.13422711 | G13: 37.47753754 | H13: 16.69434508 | I13: 5.731998166 | J13: 2.553314909 | K13: 0.0008636541783
A14: 9182.001879 | B14: 4090.116852 | C14: 1404.340343 | D14: 625.5625059 | E14: 278.6564173 | F14: 95.67659382 | G14: 42.61907739 | H14: 18.98464071 | I14: 6.518370456 | J14: 2.903603942 | K14: 0.001727308357
A15: 11196.4424 | B15: 4987.448089 | C15: 1712.438743 | D15: 762.8047406 | E15: 339.7908828 | F15: 116.6670934 | G15: 51.969282 | H15: 23.14968336 | I15: 7.948436549 | J15: 3.540625966 | K15: 0.004318270891
A16: 13527.82067 | B16: 6025.959045 | C16: 2069.011156 | D16: 921.6396931 | E16: 410.5438106 | F16: 140.9600891 | G16: 62.79058135 | H16: 27.97002422 | I16: 9.603499076 | J16: 4.277872508 | K16: 0.008636541783
A17: 16966.2947 | B17: 7557.6251 | C17: 2594.908217 | D17: 1155.900202 | E17: 514.8950041 | F17: 176.7890388 | G17: 78.75056403 | H17: 35.07938827 | I17: 12.044497 | J17: 5.365213471 | K17: 0.01727308357
A18: 24330.62713 | B18: 10838.06226 | C18: 3721.245291 | D18: 1657.62633 | E18: 738.3885863 | F18: 253.5254904 | G18: 112.9327672 | H18: 50.30582877 | I18: 17.27249059 | J18: 7.694019864 | K18: 0.04318270891
A19: 33538.39339 | B19: 14939.65584 | C19: 5129.526164 | D19: 2284.944142 | E19: 1017.826904 | F19: 349.4705494 | G19: 155.6714322 | H19: 69.34373971 | I19: 23.80915137 | J19: 10.60577122 | K19: 0.08636541783
A20: 48235.27516 | B20: 21486.3724 | C20: 7377.339252 | D20: 3286.231042 | E20: 1463.849511 | F20: 502.6122723 | G20: 223.8883146 | H20: 99.73090623 | I20: 34.2425755 | J20: 15.25333331 | K20: 0.1727308357
A21: 83221.26084 | B21: 37070.8573 | C21: 12728.26727 | D21: 5669.798499 | E21: 2525.608107 | F21: 867.1667546 | G21: 386.278875 | H21: 172.0676773 | I21: 59.07938324 | J21: 26.3168734 | K21: 0.4318270891
A22: 131909.7876 | B22: 58759.13033 | C22: 20174.92904 | D22: 8986.909211 | E22: 4003.212948 | F22: 1374.501915 | G22: 612.2709971 | H22: 272.7357232 | I22: 93.64372536 | J22: 41.71353744 | K22: 0.8636541783
A23: 217502.7593 | B23: 96886.46471 | C23: 33265.93739 | D23: 14818.29049 | E23: 6600.798 | F23: 2266.381931 | G23: 1009.558379 | H23: 449.7071327 | I23: 154.4068035 | J23: 68.78041166 | K23: 1.727308357
A24: 445725.4518 | B24: 198548.1168 | C24: 68171.43388 | D24: 30366.92153 | E24: 13526.92573 | F24: 4644.465724 | G24: 2068.87428 | H24: 921.5787219 | I24: 316.4237662 | J24: 140.9507639 | K24: 4.318270891
A26: DIMENSIONLESS STANDARD STATE DIAGRAM SECOND GSD RESULTS
A27: S=0.0001 | B27: S=0.0002 | C27: S=0.0005 | D27: S=0.001 | E27: S=0.002 | F27: S=0.005 | G27: S=0.01 | H27: S=0.02 | I27: S=0.05 | J27: S=0.1 | K27: q*T
A28: 5253.347436 | B28: 2340.100248 | C28: 803.4726892 | D28: 357.9063944 | E28: 159.429174 | F28: 54.73995708 | G28: 24.3838788 | H28: 10.86178318 | I28: 3.729389862 | J28: 1.661254324 | K28: 4.318270891e-07
A29: 5972.861163 | B29: 2660.607177 | C29: 913.5186429 | D29: 406.926294 | E29: 181.2650568 | F29: 62.23730063 | G29: 27.72356568 | H29: 12.34944456 | I29: 4.240177932 | J29: 1.888784542 | K29: 8.636541783e-07
A30: 6790.921579 | B30: 3025.011665 | C30: 1038.63681 | D30: 462.6601013 | E30: 206.0916456 | F30: 70.76150213 | G30: 31.52066577 | H30: 14.04086037 | I30: 4.82092502 | J30: 2.14747796 | K30: 1.727308357e-06
A31: 8046.764838 | B31: 3584.42624 | C31: 1230.71163 | D31: 548.2197066 | E31: 244.2041169 | F31: 83.84740725 | G31: 37.34977382 | H31: 16.63743281 | I31: 5.712457357 | J31: 2.544610468 | K31: 4.318270891e-06
A32: 9148.873127 | B32: 4075.359671 | C32: 1399.27347 | D32: 623.3054702 | E32: 277.6510222 | F32: 95.33139173 | G32: 42.46530735 | H32: 18.91614394 | I32: 6.494852112 | J32: 2.89312771 | K32: 8.636541783e-06
A33: 10399.8399 | B33: 4632.602018 | C33: 1590.602455 | D33: 708.5328443 | E33: 315.6155014 | F33: 108.3664838 | G33: 48.27178075 | H33: 21.5026338 | I33: 7.382922596 | J33: 3.288718138 | K33: 1.727308357e-05
A34: 12276.7218 | B34: 5468.657859 | C34: 1877.661967 | D34: 836.4033199 | E34: 372.5753228 | F34: 127.9236207 | G34: 56.98349484 | H34: 25.38326125 | I34: 8.715334821 | J34: 3.88224031 | K34: 4.318270891e-05
A35: 13786.8003 | B35: 6141.321356 | C35: 2108.620769 | D35: 939.28377 | E35: 418.4033533 | F35: 143.6586606 | G35: 63.99265831 | H35: 28.50548863 | I35: 9.787350615 | J35: 4.359769058 | K35: 8.636541783e-05
A36: 15262.8773 | B36: 6798.838909 | C36: 2334.379215 | D36: 1039.847725 | E36: 463.1995028 | F36: 159.0394046 | G36: 70.84400083 | H36: 31.55741476 | I36: 10.8352285 | J36: 4.82654559 | K36: 0.0001727308357
A37: 16972.91889 | B37: 7560.57584 | C37: 2595.921352 | D37: 1156.351503 | E37: 515.0960357 | F37: 176.8580629 | G37: 78.78131078 | H37: 35.09308439 | I37: 12.04919956 | J37: 5.367308222 | K37: 0.0004318270891
A38: 17873.71144 | B38: 7961.833306 | C38: 2733.692978 | D38: 1217.721785 | E38: 542.4333886 | F38: 186.2443345 | G38: 82.96241944 | H38: 36.95555657 | I38: 12.6886788 | J38: 5.65216384 | K38: 0.0008636541783
A39: 18329.13152 | B39: 8164.699889 | C39: 2803.347156 | D39: 1248.749194 | E39: 556.2545281 | F39: 190.9898184 | G39: 85.0762922 | H39: 37.89717983 | I39: 13.01198486 | J39: 5.796180314 | K39: 0.001727308357
A40: 18709.40843 | B40: 8334.093996 | C40: 2861.50857 | D40: 1274.657158 | E40: 567.7952142 | F40: 194.9523094 | G40: 86.84138128 | H40: 38.68343763 | I40: 13.28194622 | J40: 5.916434433 | K40: 0.004318270891
A41: 19422.04999 | B41: 8651.539722 | C41: 2970.503461 | D41: 1323.208863 | E41: 589.4225398 | F41: 202.3780449 | G41: 90.14917038 | H41: 40.15689017 | I41: 13.78785569 | J41: 6.141791481 | K41: 0.008636541783
A42: 21215.72334 | B42: 9450.530364 | C42: 3244.836648 | D42: 1445.410405 | E42: 643.8571385 | F42: 221.0681474 | G42: 98.47466455 | H42: 43.86547621 | I42: 15.06119755 | J42: 6.709000796 | K42: 0.01727308357
A43: 26339.47224 | B43: 11732.90103 | C43: 4028.487901 | D43: 1794.487354 | E43: 799.3532416 | F43: 274.4576858 | G43: 122.2570002 | H43: 54.45930239 | I43: 18.69858446 | J43: 8.329272463 | K43: 0.04318270891
A44: 33376.73727 | B44: 14867.64622 | C44: 5104.801685 | D44: 2273.930639 | E44: 1012.920946 | F44: 347.7860902 | G44: 154.921091 | H44: 69.00950069 | I44: 23.6943905 | J44: 10.55465106 | K44: 0.08636541783
A45: 44953.05733 | B45: 20024.31058 | C45: 6875.34078 | D45: 3062.616144 | E45: 1364.240398 | F45: 468.4115146 | G45: 208.6536089 | H45: 92.94461637 | I45: 31.91250499 | J45: 14.2154049 | K45: 0.1727308357
A46: 72929.72257 | B46: 32486.49818 | C46: 11154.229 | D46: 4968.644158 | E46: 2213.279356 | F46: 759.9287753 | G46: 338.5097859 | H46: 150.7889672 | I46: 51.77334477 | J46: 23.06240324 | K46: 0.4318270891
A47: 112400.0874 | B47: 50068.5469 | C47: 17191.01993 | D47: 7657.728812 | E47: 3411.130391 | F47: 1171.210554 | G47: 521.7149906 | H47: 232.3976082 | I47: 79.79364617 | J47: 35.54402854 | K47: 0.8636541783
A48: 182249.8033 | B48: 81183.05808 | C48: 27874.17763 | D48: 12416.53456 | E48: 5530.937361 | F48: 1899.045615 | G48: 845.928652 | H48: 376.8183759 | I48: 129.3804716 | J48: 57.63244816 | K48: 1.727308357
A49: 370168.3051 | B49: 164891.2343 | C49: 56615.35376 | D49: 25219.27305 | E49: 11233.90902 | F49: 3857.159151 | G49: 1718.169071 | H49: 765.3573117 | I49: 262.7851938 | J49: 117.0574962 | K49: 4.318270891
A55: DIMENSIONLESS ALTERNATIVE STATE DIAGRAM FIRST GSD RESULTS | M55: GAMMAS
A56: q*W=10 | B56: q*W=32 | C56: q*W=100 | D56: q*W=316 | E56: q*W=1000 | F56: q*W=3162 | G56: q*W=10000 | H56: q*W=31623 | I56: q*W=100000 | J56: q*W=316228 | K56: q*T | M56: S | N56: =N2 -> G1=1.58,G2=4.13 | O56: =O2 -> G1=1.58,G2=4.13 | P56: G1=1.58,G2=4.13 | Q56: G1=1.58,G2=4.13 | R56: G1=1.58,G2=4.13 | S56: G1=1.58,G2=4.12 | T56: G1=1.58,G2=4.12 | U56: G1=1.58,G2=4.11 | V56: G1=1.58,G2=4.09 | W56: G1=1.55,G2=4.02 | X56: G1=1.51,G2=3.93 | Y56: G1=1.45,G2=3.76 | Z56: G1=1.36,G2=3.41 | AA56: G1=1.3,G2=3.07 | AB56: G1=1.25,G2=2.74 | AC56: G1=1.2,G2=2.35 | AD56: G1=1.16,G2=2.1 | AE56: G1=1.13,G2=1.88 | AF56: G1=1.1,G2=1.63 | AG56: G1=1.08,G2=1.49 | AH56: G1=1.07,G2=1.36 | AI56: G1=1.05,G2=1.23
A57: 0.009547769099 | B57: 0.003559020414 | C57: 0.001326658214 | D57: 0.0004945242829 | E57: 0.0001843385612 | F57: 6.87139263e-05 | G57: 2.561376002e-05 | H57: 9.547769099e-06 | I57: 3.559020414e-06 | J57: 1.326658214e-06 | K57: 4.318270891e-07 | M57: 0.0001 | N57: =N3 -> 4.318270891e-07 | O57: 8.636541783e-07 | P57: 1.727308357e-06 | Q57: 4.318270891e-06 | R57: 8.636541783e-06 | S57: 1.727308357e-05 | T57: 4.318270891e-05 | U57: 8.636541783e-05 | V57: 0.0001727308357 | W57: 0.0004318270891 | X57: 0.0008636541783 | Y57: 0.001727308357 | Z57: 0.004318270891 | AA57: 0.008636541783 | AB57: 0.01727308357 | AC57: 0.04318270891 | AD57: 0.08636541783 | AE57: 0.1727308357 | AF57: 0.4318270891 | AG57: 0.8636541783 | AH57: 1.727308357 | AI57: 4.318270891
A58: 0.01065821426 | B58: 0.003972949255 | C58: 0.001480954069 | D58: 0.0005520395089 | E58: 0.0002057779007 | F58: 7.670564104e-05 | G58: 2.859274658e-05 | H58: 1.065821426e-05 | I58: 3.972949255e-06 | J58: 1.480954069e-06 | K58: 8.636541783e-07 | M58: 0.1 | N58: 4.318270891e-07 | O58: 8.636541783e-07 | P58: 1.727308357e-06 | Q58: 4.318270891e-06 | R58: 8.636541783e-06 | S58: 1.727308357e-05 | T58: 4.318270891e-05 | U58: 8.636541783e-05 | V58: 0.0001727308357 | W58: 0.0004318270891 | X58: 0.0008636541783 | Y58: 0.001727308357 | Z58: 0.004318270891 | AA58: 0.008636541783 | AB58: 0.01727308357 | AC58: 0.04318270891 | AD58: 0.08636541783 | AE58: 0.1727308357 | AF58: 0.4318270891 | AG58: 0.8636541783 | AH58: 1.727308357 | AI58: 4.318270891
A59: 0.0118978088 | B59: 0.004435019738 | C59: 0.001653195173 | D59: 0.0006162439944 | E59: 0.0002297107244 | F59: 8.562682536e-05 | G59: 3.191820165e-05 | H59: 1.18978088e-05 | I59: 4.435019738e-06 | J59: 1.653195173e-06 | K59: 1.727308357e-06
A60: 0.01376043193 | B60: 0.005129329965 | C60: 0.001912005817 | D60: 0.0007127180876 | E60: 0.0002656723468 | F60: 9.903185715e-05 | G60: 3.691505288e-05 | H60: 1.376043193e-05 | I60: 5.129329965e-06 | J60: 1.912005817e-06 | K60: 4.318270891e-06
A61: 0.01536082726 | B61: 0.005725892323 | C61: 0.002134380027 | D61: 0.0007956101584 | E61: 0.000296571143 | F61: 0.000110549673 | G61: 4.12084267e-05 | H61: 1.536082726e-05 | I61: 5.725892323e-06 | J61: 2.134380027e-06 | K61: 8.636541783e-06
A62: 0.01714735521 | B62: 0.006391837358 | C62: 0.00238261728 | D62: 0.000888142921 | E62: 0.0003310635975 | F62: 0.0001234070587 | G62: 4.600113771e-05 | H62: 1.714735521e-05 | I62: 6.391837358e-06 | J62: 2.38261728e-06 | K62: 1.727308357e-05
A63: 0.01983157665 | B63: 0.007392406058 | C63: 0.00275558864 | D63: 0.001027171491 | E63: 0.0003828878 | F63: 0.0001427250159 | G63: 5.320208729e-05 | H63: 1.983157665e-05 | I63: 7.392406058e-06 | J63: 2.75558864e-06 | K63: 4.318270891e-05
A64: 0.0221316444 | B64: 0.008249777867 | C64: 0.003075182017 | D64: 0.001146302918 | E64: 0.0004272951557 | F64: 0.0001592782739 | G64: 5.937246937e-05 | H64: 2.21316444e-05 | I64: 8.249777867e-06 | J64: 3.075182017e-06 | K64: 8.636541783e-05
A65: 0.02466748574 | B65: 0.009195036495 | C65: 0.00342753603 | D65: 0.001277646178 | E65: 0.000476254587 | F65: 0.0001775283608 | G65: 6.617536028e-05 | H65: 2.466748574e-05 | I65: 9.195036495e-06 | J65: 3.42753603e-06 | K65: 0.0001727308357
A66: 0.0283458243 | B66: 0.01056617167 | C66: 0.003938639515 | D66: 0.001468164792 | E66: 0.0005472721861 | F66: 0.0002040008364 | G66: 7.604322367e-05 | H66: 2.83458243e-05 | I66: 1.056617167e-05 | J66: 3.938639515e-06 | K66: 0.0004318270891
A67: 0.03142748001 | B67: 0.01171488771 | C67: 0.004366834188 | D67: 0.00162777837 | E67: 0.0006067696428 | F67: 0.000226179071 | G67: 8.431036849e-05 | H67: 3.142748001e-05 | I67: 1.171488771e-05 | J67: 4.366834188e-06 | K67: 0.0008636541783
A68: 0.03503421669 | B68: 0.01305933261 | C68: 0.004867988624 | D68: 0.001814588383 | E68: 0.000676404826 | F68: 0.0002521362382 | G68: 9.398614581e-05 | H68: 3.503421669e-05 | I68: 1.305933261e-05 | J68: 4.867988624e-06 | K68: 0.001727308357
A69: 0.04144894891 | B69: 0.01545048417 | C69: 0.005759312776 | D69: 0.002146837814 | E69: 0.0008002539152 | F69: 0.0002983021469 | G69: 0.000111194921 | H69: 4.144894891e-05 | I69: 1.545048417e-05 | J69: 5.759312776e-06 | K69: 0.004318270891
A70: 0.04871538544 | B70: 0.01815911648 | C70: 0.006768980857 | D70: 0.002523201054 | E70: 0.0009405468402 | F70: 0.0003505976495 | G70: 0.0001306885597 | H70: 4.871538544e-05 | I70: 1.815911648e-05 | J70: 6.768980857e-06 | K70: 0.008636541783
A71: 0.05914156295 | B71: 0.02204557187 | C71: 0.008217693525 | D71: 0.003063222278 | E71: 0.001141844813 | F71: 0.0004256333553 | G71: 0.0001586588222 | H71: 5.914156295e-05 | I71: 2.204557187e-05 | J71: 8.217693525e-06 | K71: 0.01727308357
A72: 0.08056173822 | B72: 0.03003014295 | C72: 0.01119401723 | D72: 0.004172674832 | E72: 0.00155540365 | F72: 0.0005797912879 | G72: 0.0002161226364 | H72: 8.056173822e-05 | I72: 3.003014295e-05 | J72: 1.119401723e-05 | K72: 0.04318270891
A73: 0.1060913113 | B73: 0.0395465306 | C73: 0.01474133991 | D73: 0.005494972608 | E73: 0.002048302539 | F73: 0.0007635239681 | G73: 0.0002846107149 | H73: 0.0001060913113 | I73: 3.95465306e-05 | J73: 1.474133991e-05 | K73: 0.08636541783
A74: 0.1448908944 | B74: 0.0540094388 | C74: 0.02013252449 | D74: 0.007504587187 | E74: 0.002797405207 | F74: 0.001042759008 | G74: 0.0003886981931 | H74: 0.0001448908944 | I74: 5.40094388e-05 | J74: 2.013252449e-05 | K74: 0.1727308357
A75: 0.2313005596 | B75: 0.08621945134 | C75: 0.03213910854 | D75: 0.01198015392 | E75: 0.004465714651 | F75: 0.001664636989 | G75: 0.0006205090386 | H75: 0.0002313005596 | I75: 8.621945134e-05 | J75: 3.213910854e-05 | K75: 0.4318270891
A76: 0.3433269334 | B76: 0.1279783321 | C76: 0.04770512271 | D76: 0.01778253158 | E76: 0.006628605307 | F76: 0.002470874752 | G76: 0.0009210417207 | H76: 0.0003433269334 | I76: 0.0001279783321 | J76: 4.770512271e-05 | K76: 0.8636541783
A77: 0.5271353105 | B77: 0.1964946273 | C77: 0.07324521388 | D77: 0.02730283993 | E77: 0.01017738947 | F77: 0.003793717307 | G77: 0.001414143681 | H77: 0.0005271353105 | I77: 0.0001964946273 | J77: 7.324521388e-05 | K77: 1.727308357
A78: 0.9751308088 | B78: 0.3634891479 | C78: 0.1354939865 | D78: 0.05050665333 | E78: 0.01882682838 | F78: 0.007017876724 | G78: 0.002615979321 | H78: 0.0009751308088 | I78: 0.0003634891479 | J78: 0.0001354939865 | K78: 4.318270891
A80: DIMENSIONLESS ALTERNATIVE STATE DIAGRAM SECOND GSD RESULTS
A81: q*W=10 | B81: q*W=32 | C81: q*W=100 | D81: q*W=316 | E81: q*W=1000 | F81: q*W=3162 | G81: q*W=10000 | H81: q*W=31623 | I81: q*W=100000 | J81: q*W=316228 | K81: q*T
A82: 0.02187959118 | B82: 0.008155822668 | C82: 0.003040159336 | D82: 0.001133247885 | E82: 0.00042242877 | F82: 0.000157464283 | G82: 5.869628726e-05 | H82: 2.187959118e-05 | I82: 8.155822668e-06 | J82: 3.040159336e-06 | K82: 4.318270891e-07
A83: 0.02442427842 | B83: 0.009104378685 | C83: 0.003393742481 | D83: 0.001265049316 | E83: 0.0004715589887 | F83: 0.0001757780325 | G83: 6.552290901e-05 | H83: 2.442427842e-05 | I83: 9.104378685e-06 | J83: 3.393742481e-06 | K83: 8.636541783e-07
A84: 0.02726492334 | B84: 0.0101632557 | C84: 0.003788448813 | D84: 0.001412179801 | E84: 0.0005264032557 | F84: 0.000196221747 | G84: 7.31434952e-05 | H84: 2.726492334e-05 | I84: 1.01632557e-05 | J84: 3.788448813e-06 | K84: 1.727308357e-06
A85: 0.03153329558 | B85: 0.01175433146 | C85: 0.004381537213 | D85: 0.00163325906 | E85: 0.0006088126215 | F85: 0.0002269406105 | G85: 8.459423945e-05 | H85: 3.153329558e-05 | I85: 1.175433146e-05 | J85: 4.381537213e-06 | K85: 4.318270891e-06
A86: 0.03520074869 | B86: 0.01312140898 | C86: 0.00489112817 | D86: 0.001823213865 | E86: 0.0006796200555 | F86: 0.0002533347451 | G86: 9.44329005e-05 | H86: 3.520074869e-05 | I86: 1.312140898e-05 | J86: 4.89112817e-06 | K86: 8.636541783e-06
A87: 0.03928839887 | B87: 0.01464511889 | C87: 0.005459105321 | D87: 0.002034932671 | E87: 0.0007585402247 | F87: 0.0002827529778 | G87: 0.0001053988225 | H87: 3.928839887e-05 | I87: 1.464511889e-05 | J87: 5.459105321e-06 | K87: 1.727308357e-05
A88: 0.04530092475 | B88: 0.01688634426 | C88: 0.006294543083 | D88: 0.002346349927 | E88: 0.0008746239253 | F88: 0.0003260242652 | G88: 0.0001215286003 | H88: 4.530092475e-05 | I88: 1.688634426e-05 | J88: 6.294543083e-06 | K88: 4.318270891e-05
A89: 0.05006530379 | B89: 0.0186623112 | C89: 0.006956551404 | D89: 0.002593119733 | E89: 0.0009666096832 | F89: 0.0003603128185 | G89: 0.00013430998 | H89: 5.006530379e-05 | I89: 1.86623112e-05 | J89: 6.956551404e-06 | K89: 8.636541783e-05
A90: 0.05469155725 | B90: 0.02038679053 | C90: 0.007599367237 | D90: 0.002832735359 | E90: 0.001055928654 | F90: 0.0003936073018 | G90: 0.0001467208107 | H90: 5.469155725e-05 | I90: 2.038679053e-05 | J90: 7.599367237e-06 | K90: 0.0001727308357
A91: 0.06008978183 | B91: 0.02239902934 | C91: 0.008349448111 | D91: 0.003112335035 | E91: 0.001160152053 | F91: 0.0004324575508 | G91: 0.0001612026051 | H91: 6.008978183e-05 | I91: 2.239902934e-05 | J91: 8.349448111e-06 | K91: 0.0004318270891
A92: 0.06308836264 | B92: 0.02351677844 | C92: 0.008766099564 | D92: 0.003267645768 | E92: 0.001218045585 | F92: 0.0004540379073 | G92: 0.0001692468852 | H92: 6.308836264e-05 | I92: 2.351677844e-05 | J92: 8.766099564e-06 | K92: 0.0008636541783
A93: 0.06487808527 | B93: 0.02418391432 | C93: 0.009014780717 | D93: 0.003360343999 | E93: 0.001252599719 | F93: 0.0004669182846 | G93: 0.0001740481666 | H93: 6.487808527e-05 | I93: 2.418391432e-05 | J93: 9.014780717e-06 | K93: 0.001727308357
A94: 0.06660569139 | B94: 0.0248278957 | C94: 0.009254830809 | D94: 0.003449824921 | E94: 0.001285954571 | F94: 0.0004793516184 | G94: 0.0001786828082 | H94: 6.660569139e-05 | I94: 2.48278957e-05 | J94: 9.254830809e-06 | K94: 0.004318270891
A95: 0.06920231811 | B95: 0.02579581264 | C95: 0.009615630921 | D95: 0.003584316544 | E95: 0.001336087584 | F95: 0.0004980391688 | G95: 0.0001856487678 | H95: 6.920231811e-05 | I95: 2.579581264e-05 | J95: 9.615630921e-06 | K95: 0.008636541783
A96: 0.0750889487 | B96: 0.02799010936 | C96: 0.01043357559 | D96: 0.003889213085 | E96: 0.001449740627 | F96: 0.0005404044058 | G96: 0.000201440807 | H96: 7.50889487e-05 | I96: 2.799010936e-05 | J96: 1.043357559e-05 | K96: 0.01727308357
A97: 0.09118091924 | B97: 0.0339885422 | C97: 0.01266954765 | D97: 0.004722692624 | E97: 0.001760427937 | F97: 0.0006562160123 | G97: 0.0002446106686 | H97: 9.118091924e-05 | I97: 3.39885422e-05 | J97: 1.266954765e-05 | K97: 0.04318270891
A98: 0.1124957856 | B98: 0.0419338584 | C98: 0.01563123872 | D98: 0.005826690731 | E98: 0.002171953578 | F98: 0.0008096160517 | G98: 0.000301791971 | H98: 0.0001124957856 | I98: 4.19338584e-05 | J98: 1.563123872e-05 | K98: 0.08636541783
A99: 0.1462598615 | B99: 0.05451973412 | C99: 0.02032274185 | D99: 0.007575492492 | E99: 0.002823835824 | F99: 0.001052611268 | G99: 0.0003923707154 | H99: 0.0001462598615 | I99: 5.451973412e-05 | J99: 2.032274185e-05 | K99: 0.1727308357
A100: 0.2235037277 | B100: 0.08331310919 | C100: 0.03105574227 | D100: 0.01157631898 | E100: 0.004315181395 | F100: 0.001608524307 | G100: 0.0005995925106 | H100: 0.0002235037277 | I100: 8.331310919e-05 | J100: 3.105574227e-05 | K100: 0.4318270891
A101: 0.3254121296 | B101: 0.1213004211 | C101: 0.04521586879 | D101: 0.01685463886 | E101: 0.006282724596 | F101: 0.002341944475 | G101: 0.0008729817519 | H101: 0.0003254121296 | I101: 0.0001213004211 | J101: 4.521586879e-05 | K101: 0.8636541783
A102: 0.494769892 | B102: 0.1844301142 | C102: 0.06874805357 | D102: 0.02562648128 | E102: 0.009552511068 | F102: 0.003560788027 | G102: 0.001327317109 | H102: 0.000494769892 | I102: 0.0001844301142 | J102: 6.874805357e-05 | K102: 1.727308357
A103: 0.9134095994 | B103: 0.3404819887 | C103: 0.1269178523 | D103: 0.04730981892 | E103: 0.01763517839 | F103: 0.006573678023 | G103: 0.002450400092 | H103: 0.0009134095994 | I103: 0.0003404819887 | J103: 0.0001269178523 | K103: 4.318270891
A109: DIMENSIONED STANDARD STATE DIAGRAM FIRST GSD RESULTS | M109: GAMMAS
A110: S=0.0001 | B110: S=0.0002 | C110: S=0.0005 | D110: S=0.001 | E110: S=0.002 | F110: S=0.005 | G110: S=0.01 | H110: S=0.02 | I110: S=0.05 | J110: S=0.1 | K110: qT (kg/m-s) | M110: qW (m2/s) | N110: G1=1.58,G2=4.13 | O110: G1=1.58,G2=4.13 | P110: G1=1.58,G2=4.13 | Q110: G1=1.58,G2=4.12 | R110: G1=1.58,G2=4.12 | S110: G1=1.58,G2=4.11 | T110: G1=1.58,G2=4.08 | U110: G1=1.58,G2=4.03 | V110: G1=1.58,G2=3.95 | W110: G1=1.55,G2=3.73 | X110: G1=1.51,G2=3.46 | Y110: G1=1.45,G2=3.13 | Z110: G1=1.36,G2=2.69 | AA110: G1=1.3,G2=2.39 | AB110: G1=1.25,G2=2.14 | AC110: G1=1.2,G2=1.84 | AD110: G1=1.16,G2=1.66 | AE110: G1=1.13,G2=1.51 | AF110: G1=1.1,G2=1.35 | AG110: G1=1.08,G2=1.25 | AH110: G1=1.07,G2=1.17 | AI110: G1=1.05,G2=1.09
A111: 23.31861815 | B111: 10.38726351 | C111: 3.56646368 | D111: 1.588678961 | E111: 0.7076760247 | F111: 0.242980342 | G111: 0.1082354376 | H111: 0.04821340631 | I111: 0.01655405799 | J111: 0.007373994523 | K111: 1.325e-05 | M111: 0.005690578262 | N111: 1.325e-05 | O111: 2.65e-05 | P111: 5.3e-05 | Q111: 0.0001325 | R111: 0.000265 | S111: 0.00053 | T111: 0.001325 | U111: 0.00265 | V111: 0.0053 | W111: 0.01325 | X111: 0.0265 | Y111: 0.053 | Z111: 0.1325 | AA111: 0.265 | AB111: 0.53 | AC111: 1.325 | AD111: 2.65 | AE111: 5.3 | AF111: 13.25 | AG111: 26.5 | AH111: 53 | AI111: 132.5
A112: 26.51240383 | B112: 11.80993329 | C112: 4.054936907 | D112: 1.806269046 | E112: 0.8046013889 | F112: 0.2762596355 | G112: 0.1230596776 | H112: 0.0548168545 | I112: 0.01882134987 | J112: 0.008383958235 | K112: 2.65e-05 | M112: 5160.92509 | N112: 1.325e-05 | O112: 2.65e-05 | P112: 5.3e-05 | Q112: 0.0001325 | R112: 0.000265 | S112: 0.00053 | T112: 0.001325 | U112: 0.00265 | V112: 0.0053 | W112: 0.01325 | X112: 0.0265 | Y112: 0.053 | Z112: 0.1325 | AA112: 0.265 | AB112: 0.53 | AC112: 1.325 | AD112: 2.65 | AE112: 5.3 | AF112: 13.25 | AG112: 26.5 | AH112: 53 | AI112: 132.5
A113: 30.14361968 | B113: 13.42745607 | C113: 4.610312846 | D113: 2.053660902 | E113: 0.9148019326 | F113: 0.3140969578 | G113: 0.1399142885 | H113: 0.06232473015 | I113: 0.02139917662 | J113: 0.009532249512 | K113: 5.3e-05
A114: 35.71807097 | B114: 15.91059182 | C114: 5.462896731 | D114: 2.433443848 | E114: 1.083976002 | F114: 0.3721828217 | G114: 0.1657885994 | H114: 0.07385042534 | I114: 0.02535652047 | J114: 0.01129504579 | K114: 0.0001325
A115: 40.61012174 | B115: 18.0897527 | C115: 6.211110938 | D115: 2.766735386 | E115: 1.232440505 | F115: 0.4231580622 | G115: 0.1884954876 | H115: 0.08396519414 | I115: 0.02882942317 | J115: 0.01284204808 | K115: 0.000265
A116: 46.17220199 | B116: 20.56737778 | C116: 7.061802736 | D116: 3.145675503 | E116: 1.401239136 | F116: 0.4811150197 | G116: 0.2143123772 | H116: 0.09546531105 | I116: 0.03277798472 | J116: 0.01460093229 | K116: 0.00053
A117: 54.70986695 | B117: 24.37047517 | C117: 8.367595034 | D117: 3.727339845 | E117: 1.660341145 | F117: 0.5700776134 | G117: 0.2539407075 | H117: 0.1131177254 | I117: 0.03883893567 | J117: 0.017300779 | K117: 0.001325
A118: 62.17604188 | B118: 27.69627801 | C118: 9.5095084 | D118: 4.236004422 | E118: 1.886925455 | F118: 0.6478752654 | G118: 0.2885956217 | H118: 0.1285547347 | I118: 0.044139228 | J118: 0.01966179082 | K118: 0.00265
A119: 70.53127622 | B119: 31.41811179 | C119: 10.78739887 | D119: 4.805239911 | E119: 2.140491038 | F119: 0.7349369293 | G119: 0.3273771841 | H119: 0.1458299568 | I119: 0.05007067012 | J119: 0.02230394791 | K119: 0.0053
A120: 82.84416305 | B120: 36.90287933 | C120: 12.67059209 | D120: 5.644107126 | E120: 2.514163902 | F120: 0.8632373901 | G120: 0.3845285422 | H120: 0.1712879926 | I120: 0.05881167876 | J120: 0.02619762461 | K120: 0.01325
A121: 93.48985856 | B121: 41.64499758 | C121: 14.29879691 | D121: 6.369389918 | E121: 2.837240656 | F121: 0.974165693 | G121: 0.4339414836 | H121: 0.1932989557 | I121: 0.06636913606 | J121: 0.02956408912 | K121: 0.0265
A122: 106.3157235 | B122: 47.35827088 | C122: 16.26044751 | D122: 7.243205922 | E122: 3.226481436 | F122: 1.107811393 | G122: 0.4934738749 | H122: 0.2198176213 | I122: 0.0754743116 | J122: 0.03361998373 | K122: 0.053
A123: 129.6403431 | B123: 57.74820773 | C123: 19.82782908 | D123: 8.832293756 | E123: 3.934339593 | F123: 1.35085427 | G123: 0.6017371688 | H123: 0.2680434361 | I123: 0.09203263006 | J123: 0.04099587607 | K123: 0.1325
A124: 156.6346925 | B124: 69.77282339 | C124: 23.95647711 | D124: 10.67139738 | E124: 4.753567121 | F124: 1.632135786 | G124: 0.7270338398 | H124: 0.323856758 | I124: 0.1111961167 | J124: 0.0495322389 | K124: 0.265
A125: 196.4477811 | B125: 87.5075382 | C125: 30.0456859 | D125: 13.38383153 | E125: 5.961819176 | F125: 2.046988751 | G125: 0.9118298274 | H125: 0.4061740122 | I125: 0.1394597202 | J125: 0.06212224297 | K125: 0.53
A126: 281.7172399 | B126: 125.4907639 | C126: 43.08721459 | D126: 19.19317213 | E126: 8.549586222 | F126: 2.935497758 | G126: 1.307615595 | H126: 0.5824765287 | I126: 0.1999931341 | J126: 0.08908681342 | K126: 1.325
A127: 388.3312815 | B127: 172.9819205 | C127: 59.39328835 | D127: 26.45670223 | E127: 11.78512105 | F127: 4.046417631 | G127: 1.80247414 | H127: 0.8029109505 | I127: 0.275679224 | J127: 0.1228011336 | K127: 2.65
A128: 558.5021919 | B128: 248.7844434 | C128: 85.42006092 | D128: 38.05031139 | E128: 16.94948682 | F128: 5.819601004 | G128: 2.592337537 | H128: 1.154755095 | I128: 0.3964848009 | J128: 0.1766139005 | K128: 5.3
A129: 963.5947227 | B129: 429.2326516 | C129: 147.3768968 | D129: 65.64894423 | E129: 29.24328013 | F129: 10.0406711 | G129: 4.472610505 | H129: 1.992321483 | I129: 0.6840629587 | J129: 0.3047154065 | K129: 13.25
A130: 1527.344983 | B130: 680.3548435 | C130: 233.599623 | D130: 104.0568023 | E130: 46.35203591 | F130: 15.91495705 | G130: 7.089307416 | H130: 3.157927445 | I130: 1.084273402 | J130: 0.4829888918 | K130: 26.5
A131: 2518.401054 | B131: 1121.820135 | C131: 385.1765929 | D131: 171.5766665 | E131: 76.4287161 | F131: 26.2417758 | G131: 11.68938221 | H131: 5.207027813 | I131: 1.787831373 | J131: 0.7963883391 | K131: 53
A132: 5160.92509 | B132: 2298.930774 | C132: 789.3371628 | D132: 351.6097333 | E132: 156.6243303 | F132: 53.77691489 | G132: 23.95489227 | H132: 10.67069141 | I132: 3.663778561 | J132: 1.632027812 | K132: 132.5
A134: DIMENSIONED STANDARD STATE DIAGRAM SECOND GSD RESULTS
A135: S=0.0001 | B135: S=0.0002 | C135: S=0.0005 | D135: S=0.001 | E135: S=0.002 | F135: S=0.005 | G135: S=0.01 | H135: S=0.02 | I135: S=0.05 | J135: S=0.1 | K135: qT (kg/m-s)
A136: 17.99518851 | B136: 8.015945189 | C136: 2.752272276 | D136: 1.225997921 | E136: 0.5461199883 | F136: 0.1875101274 | G136: 0.08352626606 | H136: 0.03720672168 | I136: 0.01277491626 | J136: 0.005690578262 | K136: 2.972093253e-06
A137: 20.45986181 | B137: 9.11383233 | C137: 3.129231483 | D137: 1.393914158 | E137: 0.6209181685 | F137: 0.2131920592 | G137: 0.09496626611 | H137: 0.04230266237 | I137: 0.01452460591 | J137: 0.006469976393 | K137: 5.944186505e-06
A138: 23.26210392 | B138: 10.36208928 | C138: 3.557820118 | D138: 1.584828691 | E138: 0.7059609247 | F138: 0.2423914629 | G138: 0.1079731218 | H138: 0.0480965579 | I138: 0.01651393813 | J138: 0.007356123156 | K138: 1.188837301e-05
A139: 27.55547779 | B139: 12.27456992 | C139: 4.214469747 | D139: 1.877332847 | E139: 0.8362567136 | F139: 0.2871284814 | G139: 0.127901198 | H139: 0.05697350667 | I139: 0.01956183572 | J139: 0.008713807181 | K139: 2.972093253e-05
A140: 31.24563015 | B140: 13.91834592 | C140: 4.778859724 | D140: 2.128740001 | E140: 0.9482458691 | F140: 0.3255799229 | G140: 0.145029368 | H140: 0.06460323902 | I140: 0.02218150193 | J140: 0.009880735819 | K140: 5.944186505e-05
A141: 35.15650283 | B141: 15.66044165 | C141: 5.377007748 | D141: 2.395184655 | E141: 1.06693347 | F141: 0.3663312734 | G141: 0.163182031 | H141: 0.0726893311 | I141: 0.02495785912 | J141: 0.01111746235 | K141: 0.0001188837301
A142: 40.2158871 | B142: 17.91414113 | C142: 6.150814761 | D142: 2.739876493 | E142: 1.220476228 | F142: 0.4190501315 | G142: 0.1866656125 | H142: 0.08315007744 | I142: 0.02854955311 | J142: 0.01271738014 | K142: 0.0002972093253
A143: 43.59234238 | B143: 19.41818097 | C143: 6.66722637 | D143: 2.969911713 | E143: 1.322945269 | F143: 0.4542328448 | G143: 0.2023377296 | H143: 0.09013121197 | I143: 0.03094652347 | J143: 0.01378510905 | K143: 0.0005944186505
A144: 46.1164964 | B144: 20.54256377 | C144: 7.053282851 | D144: 3.141880325 | E144: 1.399548577 | F144: 0.4805345667 | G144: 0.2140538147 | H144: 0.09535013459 | I144: 0.03273843892 | J144: 0.01458331663 | K144: 0.001188837301
A145: 47.71741695 | B145: 21.2556928 | C145: 7.298135481 | D145: 3.250949772 | E145: 1.448133493 | F145: 0.4972161822 | G145: 0.2214846297 | H145: 0.09866018634 | I145: 0.03387494416 | J145: 0.01508957216 | K145: 0.002972093253
A146: 48.41127937 | B146: 21.56477337 | C146: 7.404258199 | D146: 3.298222069 | E146: 1.469190907 | F146: 0.5044462388 | G146: 0.2247052538 | H146: 0.1000948113 | I146: 0.03436752218 | J146: 0.01530899073 | K146: 0.005944186505
A147: 50.02700326 | B147: 22.28449654 | C147: 7.651374924 | D147: 3.408300056 | E147: 1.518225075 | F147: 0.5212821053 | G147: 0.2322047797 | H147: 0.1034354703 | I147: 0.03551453641 | J147: 0.01581992748 | K147: 0.01188837301
A148: 56.19992725 | B148: 25.03422157 | C148: 8.595492155 | D148: 3.828856471 | E148: 1.705561661 | F148: 0.5856040635 | G148: 0.2608569548 | H148: 0.1161985633 | I148: 0.03989674041 | J148: 0.01777197744 | K148: 0.02972093253
A149: 66.17647351 | B149: 29.47826771 | C149: 10.12135401 | D149: 4.508550656 | E149: 2.008331 | F149: 0.6895598214 | G149: 0.3071639805 | H149: 0.1368259982 | I149: 0.04697916375 | J149: 0.02092683838 | K149: 0.05944186505
A150: 83.00101288 | B150: 36.97274799 | C150: 12.69458147 | D150: 5.65479318 | E150: 2.518923998 | F150: 0.8648717677 | G150: 0.3852565746 | H150: 0.1716122942 | I150: 0.05892302761 | J150: 0.02624722488 | K150: 0.1188837301
A151: 122.9815108 | B151: 54.78203516 | C151: 18.80939466 | D151: 8.378632794 | E151: 3.732256608 | F151: 1.28146914 | G151: 0.5708296072 | H151: 0.2542756827 | I151: 0.08730547621 | J151: 0.03889016842 | K151: 0.2972093253
A152: 177.3036697 | B152: 78.97980602 | C152: 27.11769172 | D152: 12.0795584 | E152: 5.380831546 | F152: 1.84750683 | G152: 0.8229707333 | H152: 0.3665917857 | I152: 0.1258691751 | J152: 0.05606834337 | K152: 0.5944186505
A153: 270.7767624 | B153: 120.6173353 | C153: 41.41392438 | D153: 18.44780607 | E153: 8.217563391 | F153: 2.821497823 | G153: 1.256834397 | H153: 0.5598560765 | I153: 0.192226409 | J153: 0.08562713067 | K153: 1.188837301
A154: 512.7110174 | B154: 228.3867941 | C154: 78.41653439 | D154: 34.93059498 | E154: 15.55981115 | F154: 5.342456296 | G154: 2.379793733 | H154: 1.060077593 | I154: 0.3639773104 | J154: 0.1621334596 | K154: 2.972093253
A155: 876.2971925 | B155: 390.3460228 | C155: 134.025185 | D155: 59.70143274 | E155: 26.59396495 | F155: 9.131029557 | G155: 4.067411264 | H155: 1.81182574 | I155: 0.6220898019 | J155: 0.2771095036 | K155: 5.944186505
A156: 1558.640955 | B156: 694.2956143 | C156: 238.3861823 | D156: 106.1889721 | E156: 47.30180956 | F156: 16.24106153 | G156: 7.234570451 | H156: 3.222634771 | I156: 1.106490642 | J156: 0.4928855471 | K156: 11.88837301
A157: 3515.494812 | B157: 1565.974911 | C157: 537.6769964 | D157: 239.5078734 | E157: 106.6886287 | F157: 36.63150733 | G157: 16.31748146 | H157: 7.26861166 | I157: 2.495675542 | J157: 1.111697071 | K157: 29.72093253
A163: DIMENSIONED ALTERNATIVE STATE DIAGRAM FIRST GSD RESULTS | M163: GAMMAS
A164: 0.0316227766 | B164: 0.1 | C164: 0.316227766 | D164: 1 | E164: 3.16227766 | F164: 10 | G164: 31.6227766 | H164: 100 | I164: 316.227766 | J164: 1000 | K164: qT (kg/m-s) | M164: S | N164: =N110 -> G1=1.58,G2=4.13 | O164: =O110 -> G1=1.58,G2=4.13 | P164: G1=1.58,G2=4.13 | Q164: G1=1.58,G2=4.12 | R164: G1=1.58,G2=4.12 | S164: G1=1.58,G2=4.11 | T164: G1=1.58,G2=4.08 | U164: G1=1.58,G2=4.03 | V164: G1=1.58,G2=3.95 | W164: G1=1.55,G2=3.73 | X164: G1=1.51,G2=3.46 | Y164: G1=1.45,G2=3.13 | Z164: G1=1.36,G2=2.69 | AA164: G1=1.3,G2=2.39 | AB164: G1=1.25,G2=2.14 | AC164: G1=1.2,G2=1.84 | AD164: G1=1.16,G2=1.66 | AE164: G1=1.13,G2=1.51 | AF164: G1=1.1,G2=1.35 | AG164: G1=1.08,G2=1.25 | AH164: G1=1.07,G2=1.17 | AI164: G1=1.05,G2=1.09
A165: 0.02870985378 | B165: 0.01070186707 | C165: 0.003989221247 | D165: 0.001487019607 | E165: 0.0005543004949 | F165: 0.0002066207044 | G165: 7.701980402e-05 | H165: 2.870985378e-05 | I165: 1.070186707e-05 | J165: 3.989221247e-06 | K165: 1.325e-05 | M165: 0.0001 | N165: =N111 -> 1.325e-05 | O165: 2.65e-05 | P165: 5.3e-05 | Q165: 0.0001325 | R165: 0.000265 | S165: 0.00053 | T165: 0.001325 | U165: 0.00265 | V165: 0.0053 | W165: 0.01325 | X165: 0.0265 | Y165: 0.053 | Z165: 0.1325 | AA165: 0.265 | AB165: 0.53 | AC165: 1.325 | AD165: 2.65 | AE165: 5.3 | AF165: 13.25 | AG165: 26.5 | AH165: 53 | AI165: 132.5
A166: 0.0320489289 | B166: 0.01194653861 | C166: 0.00445318423 | D166: 0.001659966157 | E166: 0.0006187679424 | F166: 0.0002306515496 | G166: 8.59775268e-05 | H166: 3.20489289e-05 | I166: 1.194653861e-05 | J166: 4.45318423e-06 | K166: 2.65e-05 | M166: 0.1 | N166: =N112 -> 1.325e-05 | O166: 2.65e-05 | P166: 5.3e-05 | Q166: 0.0001325 | R166: 0.000265 | S166: 0.00053 | T166: 0.001325 | U166: 0.00265 | V166: 0.0053 | W166: 0.01325 | X166: 0.0265 | Y166: 0.053 | Z166: 0.1325 | AA166: 0.265 | AB166: 0.53 | AC166: 1.325 | AD166: 2.65 | AE166: 5.3 | AF166: 13.25 | AG166: 26.5 | AH166: 53 | AI166: 132.5
A167: 0.03577635231 | B167: 0.01333597062 | C167: 0.004971108034 | D167: 0.001853027109 | E167: 0.0006907332215 | F167: 0.0002574772819 | G167: 9.597706991e-05 | H167: 3.577635231e-05 | I167: 1.333597062e-05 | J167: 4.971108034e-06 | K167: 5.3e-05
A168: 0.04137720389 | B168: 0.01542374054 | C168: 0.005749343837 | D168: 0.002143121798 | E168: 0.0007988687357 | F168: 0.0002977858083 | G168: 0.0001110024509 | H168: 4.137720389e-05 | I168: 1.542374054e-05 | J168: 5.749343837e-06 | K168: 0.0001325
A169: 0.04618954438 | B169: 0.01721758556 | C169: 0.00641801638 | D169: 0.002392375756 | E169: 0.0008917804844 | F169: 0.0003324195333 | G169: 0.0001239124965 | H169: 4.618954438e-05 | I169: 1.721758556e-05 | J169: 6.41801638e-06 | K169: 0.000265
A170: 0.05156158004 | B170: 0.0192200622 | C170: 0.007164458315 | D170: 0.002670618983 | E170: 0.0009954982549 | F170: 0.0003710813044 | G170: 0.000138324034 | H170: 5.156158004e-05 | I170: 1.92200622e-05 | J170: 7.164458315e-06 | K170: 0.00053
A171: 0.05963275174 | B171: 0.02222866709 | C171: 0.008285943986 | D171: 0.003088663277 | E171: 0.001151328183 | F171: 0.0004291683707 | G171: 0.0001599765323 | H171: 5.963275174e-05 | I171: 2.222866709e-05 | J171: 8.285943986e-06 | K171: 0.001325
A172: 0.06654347702 | B172: 0.02480470471 | C172: 0.00924618615 | D172: 0.003446602543 | E172: 0.0012847534 | F172: 0.0004789038704 | G172: 0.000178515906 | H172: 6.654347702e-05 | I172: 2.480470471e-05 | J172: 9.24618615e-06 | K172: 0.00265
A173: 0.07413810709 | B173: 0.02763567424 | C173: 0.01030145658 | D173: 0.003839964484 | E173: 0.00143138275 | F173: 0.0005335613349 | G173: 0.0001988899881 | H173: 7.413810709e-05 | I173: 2.763567424e-05 | J173: 1.030145658e-05 | K173: 0.0053
A174: 0.08510180746 | B174: 0.03172249631 | C174: 0.0118248578 | D174: 0.004407826569 | E174: 0.001643058664 | F174: 0.0006124655158 | G174: 0.0002283022611 | H174: 8.510180746e-05 | I174: 3.172249631e-05 | J174: 1.18248578e-05 | K174: 0.01325
A175: 0.09439326371 | B175: 0.0351859737 | C175: 0.01311590146 | D175: 0.004889075193 | E175: 0.001822448599 | F175: 0.0006793347952 | G175: 0.0002532284117 | H175: 9.439326371e-05 | I175: 3.51859737e-05 | J175: 1.311590146e-05 | K175: 0.0265
A176: 0.1053896243 | B176: 0.03928497016 | C176: 0.01464384081 | D176: 0.005458628904 | E176: 0.002034755082 | F176: 0.0007584740267 | G176: 0.0002827283019 | H176: 0.0001053896243 | I176: 3.928497016e-05 | J176: 1.464384081e-05 | K176: 0.053
A177: 0.1249207068 | B177: 0.04656536422 | C177: 0.01735767593 | D177: 0.006470236378 | E177: 0.002411841249 | F177: 0.0008990364295 | G177: 0.0003351242549 | H177: 0.0001249207068 | I177: 4.656536422e-05 | J177: 1.735767593e-05 | K177: 0.1325
A178: 0.1469084653 | B178: 0.05476150728 | C178: 0.02041286507 | D178: 0.007609086763 | E178: 0.002836358404 | F178: 0.001057279177 | G178: 0.0003941107222 | H178: 0.0001469084653 | I178: 5.476150728e-05 | J178: 2.041286507e-05 | K178: 0.265
A179: 0.1783835001 | B179: 0.06649412147 | C179: 0.02478630696 | D179: 0.009239328219 | E179: 0.003444046185 | F179: 0.001283800493 | G179: 0.0004785486656 | H179: 0.0001783835001 | I179: 6.649412147e-05 | J179: 2.478630696e-05 | K179: 0.53
A180: 0.2429709569 | B180: 0.09056970131 | C180: 0.03376070499 | D180: 0.01258461919 | E180: 0.004691034747 | F180: 0.001748627166 | G180: 0.0006518171644 | H180: 0.0002429709569 | I180: 9.056970131e-05 | J180: 3.376070499e-05 | K180: 1.325
A181: 0.3199120568 | B181: 0.1192502174 | C181: 0.04445163615 | D181: 0.01656976398 | E181: 0.006176534815 | F181: 0.002302361239 | G181: 0.0008582267296 | H181: 0.0003199120568 | I181: 0.0001192502174 | J181: 4.445163615e-05 | K181: 2.65
A182: 0.4368245535 | B182: 0.1628304462 | C182: 0.06069657489 | D182: 0.02262521714 | E182: 0.008433761733 | F182: 0.003143763727 | G182: 0.001171867393 | H182: 0.0004368245535 | I182: 0.0001628304462 | J182: 6.069657489e-05 | K182: 5.3
A183: 0.6971690007 | B183: 0.2598762789 | C183: 0.09687131852 | D183: 0.03610969186 | E183: 0.01346022606 | F183: 0.005017425414 | G183: 0.001870292347 | H183: 0.0006971690007 | I183: 0.0002598762789 | J183: 9.687131852e-05 | K183: 13.25
A184: 1.034673355 | B184: 0.3856841899 | C184: 0.1437673964 | D184: 0.05359064441 | E184: 0.01997641496 | F184: 0.007446395895 | G184: 0.002775713858 | H184: 0.001034673355 | I184: 0.0003856841899 | J184: 0.0001437673964 | K184: 26.5
A185: 1.588415782 | B185: 0.5920968695 | C185: 0.2207096572 | D185: 0.08227159324 | E185: 0.03066750743 | F185: 0.01143160081 | G185: 0.00426123634 | H185: 0.001588415782 | I185: 0.0005920968695 | J185: 0.0002207096572 | K185: 53
A186: 2.938002698 | B186: 1.095168041 | C186: 0.4082341512 | D186: 0.1521731058 | E186: 0.05672395137 | F186: 0.02114438449 | G186: 0.007881767486 | H186: 0.002938002698 | I186: 0.001095168041 | J186: 0.0004082341512 | K186: 132.5
A188: DIMENSIONED ALTERNATIVE STATE DIAGRAM SECOND GSD RESULTS
A189: 0.0316227766 | B189: 0.1 | C189: 0.316227766 | D189: 1 | E189: 3.16227766 | F189: 10 | G189: 31.6227766 | H189: 100 | I189: 316.227766 | J189: 1000 | K189: qT (kg/m-s)
A190: 0.02299125239 | B190: 0.008570204804 | C190: 0.003194624161 | D190: 0.001190826096 | E190: 0.0004438915878 | F190: 0.0001654647495 | G190: 6.167853612e-05 | H190: 2.299125239e-05 | I190: 8.570204804e-06 | J190: 3.194624161e-06 | K190: 2.972093253e-06
A191: 0.02566523044 | B191: 0.009566955183 | C191: 0.003566172206 | D191: 0.001329324112 | E191: 0.0004955180213 | F191: 0.0001847089864 | G191: 6.885200579e-05 | H191: 2.566523044e-05 | I191: 9.566955183e-06 | J191: 3.566172206e-06 | K191: 5.944186505e-06
A192: 0.02865020323 | B192: 0.01067963177 | C192: 0.003980932831 | D192: 0.001483930022 | E192: 0.0005531488232 | F192: 0.000206191408 | G192: 7.685977975e-05 | H192: 2.865020323e-05 | I192: 1.067963177e-05 | J192: 3.980932831e-06 | K192: 1.188837301e-05
A193: 0.03312670492 | B193: 0.01234828972 | C193: 0.004602940722 | D193: 0.001715789293 | E193: 0.0006395765395 | F193: 0.0002384081492 | G193: 8.886887199e-05 | H193: 3.312670492e-05 | I193: 1.234828972e-05 | J193: 4.602940722e-06 | K193: 2.972093253e-05
A194: 0.03689455246 | B194: 0.01375279021 | C194: 0.005126481441 | D194: 0.001910944003 | E194: 0.0007123222864 | F194: 0.0002655248082 | G194: 9.897686076e-05 | H194: 3.689455246e-05 | I194: 1.375279021e-05 | J194: 5.126481441e-06 | K194: 5.944186505e-05
A195: 0.04081896613 | B195: 0.01521565218 | C195: 0.005671776952 | D195: 0.002114208015 | E195: 0.000788090852 | F195: 0.0002937682511 | G195: 0.0001095048688 | H195: 4.081896613e-05 | I195: 1.521565218e-05 | J195: 5.671776952e-06 | K195: 0.0001188837301
A196: 0.0458049353 | B196: 0.01707421892 | C196: 0.006364575121 | D196: 0.002372455025 | E196: 0.0008843548455 | F196: 0.0003296515569 | G196: 0.0001228807073 | H196: 4.58049353e-05 | I196: 1.707421892e-05 | J196: 6.364575121e-06 | K196: 0.0002972093253
A197: 0.04908208843 | B197: 0.01829580846 | C197: 0.006819934073 | D197: 0.002542194343 | E197: 0.0009476267667 | F197: 0.0003532367585 | G197: 0.0001316723123 | H197: 4.908208843e-05 | I197: 1.829580846e-05 | J197: 6.819934073e-06 | K197: 0.0005944186505
A198: 0.05150825453 | B198: 0.01920018461 | C198: 0.00715704876 | D198: 0.002667857001 | E198: 0.0009944687005 | F198: 0.0003706975283 | G198: 0.0001381809779 | H198: 5.150825453e-05 | I198: 1.920018461e-05 | J198: 7.15704876e-06 | K198: 0.001188837301
A199: 0.05303715534 | B199: 0.01977009672 | C199: 0.007369488838 | D199: 0.002747046032 | E199: 0.001023987154 | F199: 0.0003817008084 | G199: 0.0001422825536 | H199: 5.303715534e-05 | I199: 1.977009672e-05 | J199: 7.369488838e-06 | K199: 0.002972093253
A200: 0.05369751577 | B200: 0.02001625226 | C200: 0.007461245623 | D200: 0.002781249233 | E200: 0.001036736718 | F200: 0.0003864533278 | G200: 0.0001440540998 | H200: 5.369751577e-05 | I200: 2.001625226e-05 | J200: 7.461245623e-06 | K200: 0.005944186505
A201: 0.05523002957 | B201: 0.02058751114 | C201: 0.007674187724 | D201: 0.002860625397 | E201: 0.001066324927 | F201: 0.00039748261 | G201: 0.0001481653681 | H201: 5.523002957e-05 | I201: 2.058751114e-05 | J201: 7.674187724e-06 | K201: 0.01188837301
A202: 0.06102218983 | B202: 0.02274659316 | C202: 0.008479005783 | D202: 0.003160628871 | E202: 0.001178154033 | F202: 0.0004391679576 | G202: 0.0001637039721 | H202: 6.102218983e-05 | I202: 2.274659316e-05 | J202: 8.479005783e-06 | K202: 0.02972093253
A203: 0.07019681196 | B203: 0.02616651954 | C203: 0.009753815394 | D203: 0.003635826101 | E203: 0.001355288254 | F203: 0.0005051963986 | G203: 0.0001883166923 | H203: 7.019681196e-05 | I203: 2.616651954e-05 | J203: 9.753815394e-06 | K203: 0.05944186505
A204: 0.0852398953 | B204: 0.03177396985 | C204: 0.01184404505 | D204: 0.004414978794 | E204: 0.001645724723 | F204: 0.0006134593142 | G204: 0.0002286727087 | H204: 8.52398953e-05 | I204: 3.177396985e-05 | J204: 1.184404505e-05 | K204: 0.1188837301
A205: 0.11940034 | B205: 0.04450759575 | C205: 0.01659062344 | D205: 0.006184310376 | E205: 0.002305259652 | F205: 0.0008593071403 | G205: 0.00032031479 | H205: 0.00011940034 | I205: 4.450759575e-05 | J205: 1.659062344e-05 | K205: 0.2972093253
A206: 0.1633753838 | B206: 0.06089970548 | C206: 0.02270093597 | D206: 0.008461986637 | E206: 0.003154284825 | F206: 0.001175789231 | G206: 0.0004382864552 | H206: 0.0001633753838 | I206: 6.089970548e-05 | J206: 2.270093597e-05 | K206: 0.5944186505
A207: 0.2348603825 | B207: 0.08754640871 | C207: 0.03263374433 | D207: 0.01216453404 | E207: 0.004534444072 | F207: 0.001690256525 | G207: 0.0006300589607 | H207: 0.0002348603825 | I207: 8.754640871e-05 | J207: 3.263374433e-05 | K207: 1.188837301
A208: 0.4059403962 | B208: 0.1513180872 | C208: 0.05640523516 | D208: 0.02102558004 | E208: 0.007837482011 | F208: 0.002921494873 | G208: 0.001089014594 | H208: 0.0004059403962 | I208: 0.0001513180872 | J208: 5.640523516e-05 | K208: 2.972093253
A209: 0.6426683786 | B209: 0.2395606612 | C209: 0.08929848164 | D209: 0.03328684594 | E209: 0.01240798379 | F209: 0.004625192245 | G209: 0.001724083757 | H209: 0.0006426683786 | I209: 0.0002395606612 | J209: 8.929848164e-05 | K209: 5.944186505
A210: 1.052819174 | B210: 0.3924482143 | C210: 0.1462887499 | D210: 0.05453050255 | E210: 0.02032675589 | F210: 0.007576988761 | G210: 0.002824393572 | H210: 0.001052819174 | I210: 0.0003924482143 | J210: 0.0001462887499 | K210: 11.88837301
A211: 2.114127876 | B211: 0.7880609793 | C211: 0.2937571158 | D211: 0.109500718 | E211: 0.04081741888 | F211: 0.01521507543 | G211: 0.005671561963 | H211: 0.002114127876 | I211: 0.0007880609793 | J211: 0.0002937571158 | K211: 29.72093253

Sheet qt chart (hidden)
B5: 0.01 | C5: 0.1
A6: 1 | B6: =B$5*SQRT(1.65*9.81*($A6/1000)^3)*2650 -> 0.003371493679 | C6: 0.03371493679
A7: =2*A6 -> 2 | B7: 0.009536024172 | C7: 0.09536024172
A8: =2*A7 -> 4 | B8: 0.02697194943 | C8: 0.2697194943
A9: =2*A8 -> 8 | B9: 0.07628819337 | C9: 0.7628819337
A10: =2*A9 -> 16 | B10: 0.2157755954 | C10: 2.157755954
A11: =2*A10 -> 32 | B11: 0.610305547 | C11: 6.10305547
A12: 100 | B12: 3.371493679 | C12: 33.71493679

Sheet SBTMzt (hidden)
A1: SBTMzt WORKSHEET
A3: RULES, CONVENTIONS, AND UNITS
A4: 1. Cells for input data are highlighted in GREEN, cells for output data are highlighted in ORANGE
A5: 2. Grain-diameters must be in millimeters (mm)
A6: 3. Cumulative percentiles, not fractions, are used
A7: 4. Cumulative grain-size distribution percentiles must span from 0 to 100 %
A8: 5. The 0 and 100 % must be EXACTLY 0 and 100
A9: INSTRUCTIONS
A10: 1. In table below, enter grain size and cumulative % in order of decreasing grain size
A11: 2. Check input for errors, press Enter, and then click once on the Run SBTMzt button
A13: D (mm) | B13: Surface CDF GSD (% Finer) | C13: Transport CDF GSD (% Finer) | E13: Statistic | F13: Surface GSD | G13: Bedload GSD | H13: Units
A14: 64 | B14: 100 | C14: 100 | E14: Dmin | F14: 0.21 | G14: 0.21 | H14: mm
A15: 45.25 | B15: 96.22 | C15: 99.99999713 | E15: Dmax | F15: 64 | G15: 64 | H15: mm
A16: 32 | B16: 90.93 | C16: 99.99997413 | E16: D50 | F16: 5.324192442 | G16: 0.4070039725 | H16: mm
A17: 22.63 | B17: 81.05 | C17: 99.99971496 | E17: Dg | F17: 4.119784742 | G17: 0.4978880089 | H17: mm
A18: 16 | B18: 70.88 | C18: 99.99773195 | E18: sg | F18: 2.416297581 | G18: 1.025032273 | H18: f/y-units
A19: 11.31 | B19: 64.38 | C19: 99.98526572 | E19: Fs | F19: 34.37 | G19: 93.02071383 | H19: %
A20: 8 | B20: 58.44 | C20: 99.88567066
A21: 5.66 | B21: 51.51 | C21: 99.31339599
A22: 4 | B22: 42.94 | C22: 97.36123232
A23: 2.83 | B23: 36.99 | C23: 94.78683966
A24: 2 | B24: 34.37 | C24: 93.02071383
A25: 1.41 | B25: 31.5 | C25: 90.28122944
A26: 1 | B26: 28.17 | C26: 85.98521261
A27: 0.5 | B27: 17.77 | C27: 65.54936969
A28: 0.21 | B28: 0 | C28: 0

Sheet SBTMsa (hidden)
A1: SBTMsa WORKSHEET
A3: RULES, CONVENTIONS, AND UNITS
A4: 1. Cells for input data are highlighted in GREEN, cells for output data are highlighted in ORANGE
A5: 2. Grain-diameters must be in millimeters (mm)
A6: 3. Cumulative percentiles, not fractions, are used
A7: 4. Cumulative grain-size distribution percentiles must span from 0 to 100 %
A8: 5. The 0 and 100 % must be EXACTLY 0 and 100
A9: INSTRUCTIONS
A10: 1. In table below, enter grain size and cumulative % in order of decreasing grain size
A11: 2. Check input for errors, press Enter, and then click once on the Run SBTMsa button
A13: D (mm) | B13: Surface CDF GSD (% Finer) | C13: Transport CDF GSD (% Finer) | E13: Statistic | F13: Surface GSD | G13: Bedload GSD | H13: Units
A14: 64 | B14: 100 | C14: 100 | E14: Dmin | F14: 0.21 | G14: 0.21 | H14: mm
A15: 45.25 | B15: 58.38247893 | C15: 96.22 | E15: Dmax | F15: 64 | G15: 64 | H15: mm
A16: 32 | B16: 40.76605659 | C16: 90.93 | E16: D50 | F16: 38.37254667 | G16: 5.324192442 | H16: mm
A17: 22.63 | B17: 25.17484336 | C17: 81.05 | E17: Dg | F17: 29.21992387 | G17: 4.119784742 | H17: mm
A18: 16 | B18: 15.41449989 | C18: 70.88 | E18: sg | F18: 1.21176544 | G18: 2.416297581 | H18: f/y-units
A19: 11.31 | B19: 11.11553485 | C19: 64.38 | E19: Fs | F19: 1.72372 | G19: 34.37 | H19: %
A20: 8 | B20: 8.242638983 | C20: 58.44
A21: 5.66 | B21: 5.727206989 | C21: 51.51 | E21: Parameter | F21: Value | G21: Units
A22: 4 | B22: 3.372889317 | C22: 42.94 | E22: Maximum allowed iterations | F22: 200 | G22: #
A23: 2.83 | B23: 2.135106075 | C23: 36.99 | E23: Number of iterations | F23: 28 | G23: #
A24: 2 | B24: 1.72372 | C24: 34.37 | E24: Maximum absolute tolerance | F24: 5e-05 | G24: %
A25: 1.41 | B25: 1.385707418 | C25: 31.5 | E25: Relative difference in surface Dg at convergence | F25: 4.62509515e-05 | G25: %
A26: 1 | B26: 1.092607252 | C26: 28.17 | E26: Maximum absolute error from any grain size fraction percentile at convergence | F26: 4.15419646e-05 | G26: %
A27: 0.5 | B27: 0.505640687 | C27: 17.77
A28: 0.21 | B28: 0 | C28: 0 | E28: Issue | F28: Warnings
E29: Singular derivative | F29: No problems
E30: Convergence | F30: Convergence attained, have a nice day
